Cogmind - Beta 14 @@@ ROGUE MODE // 2024.11.22 @ 15:14:12 Player: Dosh Result: Escaped singularity! Performance ------------- Evolutions (9) 4500 Regions Visited (44) 8800 Robots Destroyed (682) 3410 Value Destroyed (49589) 49589 Prototype IDs (311) 6220 Alien Tech Used (10) 2000 Bonus (66866) 66866 TOTAL SCORE: 141385 Bonus ------- High Alert Combat Kills 1332 Follower Combat Kills 18854 Entered Garrisons 2800 Used RIF Installer 8000 Aligned with FarCom 300 Built Enhanced Grunts 300 Met R17 at Research 2000 Scanned by Researcher 500 Pursued by Intercept 2000 Destroyed MAIN.C Guards 500 Met MAIN.C 5000 Destroyed MAIN.C Shell 5000 Destroyed MAIN.C 10000 Met Architect 300 Destroyed A8 300 Destroyed A6 400 Destroyed A5 500 Destroyed Architect 15000 Win 3000 Friendly Fire -9220 Cogmind --------- Core Integrity 501/1600 Matter 468/550 Energy 99/100 System Corruption 0% Temperature Cool (0) Movement Core (50) Location Near Former Tau Ceti IV Parts ------- > --- POWER (4) -------- (None) > --- PROPULSION (6) --- (None) > --- UTILITY (13) ----- (None) > --- WEAPON (2) ------- (None) > --- INVENTORY (5) ---- Biometal Heavy Treads Heavy Regenerative Plating Peak State ------------ > --- POWER ------------ Quantum Reactor Reinforced Quantum Reactor Improved Quantum Reactor Improved Quantum Reactor > --- PROPULSION ------- High-density Centrium Heavy Treads High-density Centrium Heavy Treads High-density Centrium Heavy Treads > --- UTILITY ---------- Huge Storage Unit Experimental Targeting Computer SHELL Armor Experimental Shock Absorption System Experimental EM Disruption Field Experimental Force Field Antimissile System Relay Coupler [NC] Relay Coupler [Proto] Relay Coupler [Proto] Relay Coupler [Proto] > --- WEAPON ----------- Cooled Nova Cannon Advanced Remote Datajack > --- INVENTORY -------- Light Quantum Reactor Advanced Power Amplifier Advanced Cooling System Experimental Cooling System Experimental Core Analyzer Quantum Capacitor Advanced Transmission Jammer Relay Coupler [C] Relay Coupler [C] Relay Coupler [C] Relay Coupler [Hunter] Relay Coupler [Behemoth] High-powered Transdimensional Reconstructor Integrity Redistributor Subatomic Replicator Compact HERF Cannon Improved Potential Cannon Ragnarok Missile Launcher Advanced Remote Datajack [Rating: 240] Favorites ----------- Power Quantum Reactor Engine Heavy Deuterium Engine Power Core Neutrino Core Reactor Quantum Reactor Propulsion High-density Centrium Heavy Treads Treads High-density Centrium Heavy Treads Leg High-density Centrium Leg Wheel Armored Huge Wheel Utility Huge Storage Unit Device Quantum Capacitor Storage Huge Storage Unit Processor Experimental Targeting Computer Hackware Relay Coupler [NC] Protection Centrium Heavy Armor Plating Artifact Phase Redirector Weapon Improved Remote Datajack Energy Gun Gatling Laser Energy Cannon Cooled Nova Cannon Ballistic Gun Improved Assault Rifle Ballistic Cannon Heavy Gauss Cannon Launcher Neutron Missile Launcher Special Weapon Improved Remote Datajack Impact Weapon Core Stripper Special Melee Weapon Improved Datajack Build | -11 -10 -10 -10 -9 -8 -8 -8 -8 -7 -7 -7 -7 -6 -6 -5 -5 -5 -5 -5 -5 -5 -5 -5 -4 -4 -4 -4 -4 -4 -3 -3 -3 -3 -3 -3 -2 -2 -2 -2 -1 -1 -1 -1 -1 ------- Run | Yrd Mat Min Exi Min Mat Gar Mat Gar Fac Gar Fac Gar Fac Gar Fac Was Fac Gar Fac Ext Cet Arc Hub Fac Gar Fac Gar Fac Gar Res Gar Res Qua Sec Gar Res Gar Tes Gar Acc Gar Acc Com Ac0 Slots Evolved 18 | . . . . . 4 . . . 2 . . . 2 . 2 . . . . . . . . 2 . . . . . 2 . . . . . 2 . . . 2 . . . . Power 3 | . . . . . . . . . . . . . 1 . . . . . . . . . . 1 . . . . . . . . . . . . . . . 1 . . . . Propulsion 4 | . . . . . 1 . . . 1 . . . . . . . . . . . . . . . . . . . . 2 . . . . . . . . . . . . . . Utility 11 | . . . . . 3 . . . 1 . . . 1 . 2 . . . . . . . . 1 . . . . . . . . . . . 2 . . . 1 . . . . Weapon . | . . . . . . . . . . . . . . . . . . . . . . . . . . . . . . . . . . . . . . . . . . . . . Parts Attached 1053 | 6 7 9 1 2 28 18 20 22 30 12 19 20 42 35 14 5 32 29 36 11 6 9 11 7 16 22 52 11 36 10 25 19 47 40 31 13 21 31 18 12 21 7 166 24 Power 108 | 1 1 1 . . 3 . 2 . 1 . . . 1 1 2 . . 2 2 3 . 2 1 1 . 4 6 . 5 2 9 2 2 3 2 . 1 4 . 2 5 . 37 . Engine 10 | 1 1 1 . . 2 . 2 . 1 . . . 1 . 1 . . . . . . . . . . . . . . . . . . . . . . . . . . . . . Core 12 | . . . . . 1 . . . . . . . . . . . . . 1 3 . . . 1 . . 2 . . . 1 . . . . . . . . . . . 3 . Reactor 86 | . . . . . . . . . . . . . . 1 1 . . 2 1 . . 2 1 . . 4 4 . 5 2 8 2 2 3 2 . 1 4 . 2 5 . 34 . Propulsion 92 | 2 1 4 . . 11 . 3 1 4 . 1 1 3 4 . 1 1 2 3 . 1 1 1 . . . 4 . 6 4 1 1 4 . 1 . . 3 . . . . 23 . Treads 74 | 2 1 4 . . 11 . 3 1 3 . . 1 2 4 . 1 1 2 2 . 1 1 1 . . . 4 . 4 4 1 1 4 . 1 . . 3 . . . . 11 . Leg 12 | . . . . . . . . . . . . . . . . . . . . . . . . . . . . . . . . . . . . . . . . . . . 12 . Wheel 6 | . . . . . . . . . 1 . 1 . 1 . . . . . 1 . . . . . . . . . 2 . . . . . . . . . . . . . . . Hover . | . . . . . . . . . . . . . . . . . . . . . . . . . . . . . . . . . . . . . . . . . . . . . Flight . | . . . . . . . . . . . . . . . . . . . . . . . . . . . . . . . . . . . . . . . . . . . . . Utility 546 | 1 3 1 1 . 10 9 10 3 10 7 5 9 16 19 10 4 23 16 18 8 2 5 7 2 13 16 21 5 16 2 10 13 24 22 25 12 17 15 13 6 8 6 81 22 Device 296 | . . . . . 4 7 6 2 4 3 2 5 9 10 6 2 19 6 10 4 2 5 5 . 9 7 10 3 5 . 4 10 17 20 14 8 7 7 5 5 2 5 35 12 Storage 29 | 1 2 . 1 . . . . . 1 . . . 1 . . . . . . 2 . . . . . . . . . . . 1 . . . . . . . . . . 19 1 Processor 10 | . 1 . . . . . 1 . . . . . . . 1 . . . . . . . . . . . . . . . . . . . . . . . . 1 . . 4 2 Hackware 149 | . . . . . 1 . 1 1 2 1 3 2 3 7 3 1 1 10 6 2 . . 2 1 3 7 11 2 11 2 6 2 5 2 11 3 10 6 8 . 6 . 7 . Protection 61 | . . 1 . . 5 2 2 . 3 3 . 2 3 2 . 1 3 . 2 . . . . 1 1 2 . . . . . . 1 . . 1 . 2 . . . 1 16 7 Artifact 1 | . . . . . . . . . . . . . . . . . . . . . . . . . . . . . . . . . 1 . . . . . . . . . . . Weapon 307 | 2 2 3 . 2 4 9 5 18 15 5 13 10 22 11 2 . 8 9 13 . 3 1 2 4 3 2 21 6 9 2 5 3 17 15 3 1 3 9 5 4 8 1 25 2 Energy Gun 60 | 1 . . . . . . 3 9 9 2 6 4 13 4 . . 1 . . . . 1 . 1 2 . 4 . . . . . . . . . . . . . . . . . Energy Cannon 137 | . . . . . . . 1 6 3 2 3 2 . 2 1 . 3 4 9 . 3 . . 2 . 1 12 6 9 1 5 . 12 10 2 . 2 7 4 3 6 1 13 2 Ballistic Gun 21 | 1 2 2 . 2 3 7 . . . . . . . . . . . . . . . . . . . . . . . . . . . . . . . . . . . . 4 . Ballistic Cannon 5 | . . . . . . . . . . . . . . . . . . . . . . . . . . . . . . . . . . . . . . . . . . . 5 . Launcher 16 | . . 1 . . 1 2 . 1 . . . . 2 1 . . 2 1 . . . . . . . . 3 . . . . . . 1 . . . . 1 . . . . . Special Weapon 66 | . . . . . . . . 2 3 1 4 4 7 4 1 . 2 4 4 . . . 2 1 1 1 2 . . 1 . 3 4 4 1 1 1 2 . 1 2 . 3 . Impact Weapon 1 | . . . . . . . . . . . . . . . . . . . . . . . . . . . . . . . . . 1 . . . . . . . . . . . Slashing Weapon . | . . . . . . . . . . . . . . . . . . . . . . . . . . . . . . . . . . . . . . . . . . . . . Piercing Weapon . | . . . . . . . . . . . . . . . . . . . . . . . . . . . . . . . . . . . . . . . . . . . . . Special Melee Weapon 1 | . . . . . . . 1 . . . . . . . . . . . . . . . . . . . . . . . . . . . . . . . . . . . . . Unidentified Prototypes 32 | . 1 . . . . . 1 . . . . . 6 . 2 . 1 . . . 1 1 . . . . . . . . . 1 9 . 1 . . 7 1 . . . . . Corrupted Parts 12 | . . . . . . . . . . . . . . . . . . . . . . 2 2 . . . 2 . 5 . 1 . . . . . . . . . . . . . System Corruption 63 | . . . . . . . . . . . . . . . . . . . . . . 11 14 . . . 5 . 26 . 7 . . . . . . . . . . . . . Parts Lost 76 | . 1 1 . . 7 3 1 . . . . 2 2 7 1 . 3 8 3 . . . 2 . 3 2 10 1 3 1 3 . . 1 . . 1 . . 2 1 . 1 6 Power 16 | . 1 . . . 1 . 1 . . . . . . 1 . . . 1 2 . . . . . 1 1 3 . . . 1 . . 1 . . . . . . 1 . 1 . Propulsion 10 | . . 1 . . 3 . . . . . . . . 1 . . . 2 . . . . . . . . 1 . 2 . . . . . . . . . . . . . . . Utility 39 | . . . . . 2 2 . . . . . 2 2 5 1 . 1 5 . . . . 1 . 2 1 3 1 1 . 2 . . . . . 1 . . 1 . . . 6 Weapon 11 | . . . . . 1 1 . . . . . . . . . . 2 . 1 . . . 1 . . . 3 . . 1 . . . . . . . . . 1 . . . . Highest Loss Streak 4 | . 1 1 . . 2 1 1 . . . . 1 2 2 1 . 1 3 1 . . . 2 . 2 2 4 1 1 1 1 . . 1 . . 1 . . 2 1 . 1 2 To Critical Strikes . | . . . . . . . . . . . . . . . . . . . . . . . . . . . . . . . . . . . . . . . . . . . . . Average Slot Usage (%) 80 | . 97 99 71 71 91 96 96 100 95 92 91 91 91 75 75 73 76 80 78 76 74 75 79 81 81 83 83 82 86 77 79 80 79 77 79 77 77 76 72 75 75 75 70 75 Engine 2 | . 13 14 14 14 5 9 9 9 7 7 7 7 13 8 3 . . . . . . . . . . . . . . . . . . . . . . . . . . . . . Reactor 8 | . . . . . . . . . . . . . . . 6 11 11 11 9 . . 9 11 10 10 14 13 10 10 12 12 14 13 11 14 13 13 12 13 15 15 16 13 11 Treads 14 | . 28 27 28 28 26 27 27 27 20 15 15 15 12 15 11 11 11 10 10 11 11 11 11 10 10 10 10 10 7 14 14 14 14 14 14 13 13 12 13 12 12 12 10 11 Device 14 | . . . . . 9 19 15 8 8 9 12 13 17 8 10 14 18 19 11 11 16 22 19 19 20 26 22 16 20 14 17 20 18 19 16 17 18 15 11 12 12 12 13 24 Storage 5 | . 14 14 14 14 9 9 9 9 7 7 7 7 6 6 5 5 5 5 5 5 5 5 5 5 5 5 5 5 5 4 4 4 4 4 4 4 4 4 4 4 4 4 6 4 Processor 3 | . 12 9 . . . . 4 9 7 7 7 2 . . . . . . . . . . . . . . . . . . . . . . . . . . . 4 4 4 8 14 Hackware 11 | . . . . . 8 9 9 9 9 6 6 9 8 11 17 11 10 15 20 16 11 5 11 10 13 9 18 24 21 21 19 16 19 17 19 16 14 17 17 16 16 15 3 . Protection 5 | . . 4 14 14 10 4 4 9 10 12 10 11 12 7 5 5 5 2 4 5 5 5 5 9 5 4 . . . . . . . . . 4 4 3 4 4 4 4 7 4 Energy Gun 2 | . . . . . . . 16 12 13 9 9 8 12 10 4 . 4 . . . . 3 2 . 4 3 . . . . . . . . . . . . . . . . . . Energy Cannon 2 | . . . . . . . . 4 1 4 3 4 . . . 5 . 6 4 5 3 1 . 1 5 1 4 4 5 2 4 3 4 4 3 4 4 4 4 4 4 4 2 3 Ballistic Gun 1 | . 28 27 . . 17 17 1 . . . . . . . . . . . . . . . . . . . . . . . . . . . . . . . . . . . 1 . Special Weapon 2 | . . . . . . . . . . . 1 . . 1 4 5 4 3 5 5 5 5 7 8 . 4 4 5 5 3 4 4 3 3 4 4 4 3 4 3 3 3 . . Peak Build Rating 240 | 6 12 14 13 15 39 48 49 43 62 63 63 66 97 120 127 126 126 124 130 128 127 134 136 145 151 150 144 134 132 144 155 160 182 187 187 203 204 212 213 229 228 238 240 238 Average Rating 136 | 4 11 12 9 11 31 41 40 41 55 61 60 62 76 93 121 120 121 105 123 121 121 132 133 141 144 140 135 128 121 138 145 156 161 178 178 198 199 203 207 224 224 228 203 230 On Entrance 117 | . 6 12 13 11 15 38 48 41 43 61 63 59 64 97 112 124 117 110 124 114 125 127 134 136 137 136 131 134 122 128 136 149 158 169 170 184 197 198 212 205 226 227 237 232 Naked Turns 18 | . . . . . . . . . . . . . . . . . . . . . . . . . . . . . . . . . . . . . . . . . . . 9 9 Heaviest Build 522 | 14 31 36 50 56 71 77 72 72 131 139 139 139 174 174 155 168 155 153 168 168 153 178 174 194 198 181 179 154 154 150 167 182 195 194 179 202 202 203 204 218 225 231 522 215 Greatest Support 270 | 40 40 40 40 40 84 67 67 73 98 28 56 28 58 135 135 135 145 157 135 135 140 160 160 160 160 160 160 155 155 225 220 220 255 255 270 270 270 270 270 270 270 270 270 250 Greatest Overweight (x) 13 | 4 . . 1 1 1 1 1 1 4 4 4 4 6 6 1 1 1 1 4 1 1 1 1 1 1 1 1 . 12 1 . . . . . . . 1 . . . . 13 . Average Overweight (x) . | . . . . 1 . . . . 2 3 3 3 4 1 . 1 . . 1 1 1 1 . 1 . . . . 3 . . . . . . . . . . . . . . . Largest Inventory Capacity 25 | 8 15 15 20 20 20 20 20 20 25 25 25 25 25 25 25 25 25 25 25 25 25 25 25 25 25 25 25 25 25 25 25 25 25 25 25 25 25 25 25 25 25 25 25 25 Average Capacity 23 | 7 11 15 18 20 20 20 20 20 23 25 25 25 25 25 25 25 25 25 25 25 25 25 25 25 25 25 25 25 25 25 25 25 25 25 25 25 25 25 25 25 25 25 23 24 Most Carried 25 | 1 11 15 17 17 20 20 20 20 25 25 25 25 25 25 25 25 25 25 25 25 25 25 25 22 25 25 25 25 25 25 25 25 25 25 25 24 25 25 25 24 25 25 25 25 Average Carried 21 | . 8 11 15 16 17 18 19 19 22 24 24 24 24 24 21 23 22 24 23 23 24 24 22 20 23 22 23 24 23 24 24 24 24 24 24 22 24 24 23 23 23 23 18 22 Final Capacity 25 | 8 15 15 20 20 20 20 20 20 25 25 25 25 25 25 25 25 25 25 25 25 25 25 25 25 25 25 25 25 25 25 25 25 25 25 25 25 25 25 25 25 25 25 25 5 Final Carried 25 | 1 10 14 17 15 17 20 19 20 23 25 24 25 24 24 25 25 23 25 23 25 25 23 22 21 25 22 25 24 25 25 25 24 25 25 25 23 25 25 25 24 25 23 25 4 Class Distribution -------------------- 56% | Botlord-Mutant 15% | Bothacker-Mutant 10% | Generator-Mutant 7% | Mutant 7% | Scavenger-Mutant Dominant Class ---------------- Mutant | -10/Materials Mutant | -10/Mines Mutant | -10/Exiles Mutant | -9/Mines Mutant | -8/Materials Mutant | -8/Garrison Bothacker-Mutant | -8/Materials Bothacker-Mutant | -8/Garrison Bothacker-Mutant | -7/Factory Bothacker-Mutant | -7/Garrison Botlord-Mutant | -7/Factory Botlord-Mutant | -7/Garrison Botlord-Mutant | -6/Factory Botlord-Mutant | -6/Garrison Botlord-Mutant | -5/Factory Bothacker-Mutant | -5/Waste Bothacker-Mutant | -5/Factory Botlord-Mutant | -5/Garrison Botlord-Mutant | -5/Factory Botlord-Mutant | -5/Extension Botlord-Mutant | -5/Cetus Bothacker-Mutant | -5/Archives Commander-Mutant | -5/Hub_04(d) Commander-Mutant | -4/Factory Botlord-Mutant | -4/Garrison Botlord-Mutant | -4/Factory Botlord-Mutant | -4/Garrison Botlord-Mutant | -4/Factory Botlord-Mutant | -4/Garrison Botlord-Mutant | -3/Research Botlord-Mutant | -3/Garrison Botlord-Mutant | -3/Research Botlord-Mutant | -3/Quarantine Botlord-Mutant | -3/Section 7 Botlord-Mutant | -3/Garrison Botlord-Mutant | -2/Research Botlord-Mutant | -2/Garrison Botlord-Mutant | -2/Testing Botlord-Mutant | -2/Garrison Botlord-Mutant | -1/Access Botlord-Mutant | -1/Garrison Botlord-Mutant | -1/Access Generator-Mutant | -1/Command Generator-Mutant | -1/Access_0 Resources | -11 -10 -10 -10 -9 -8 -8 -8 -8 -7 -7 -7 -7 -6 -6 -5 -5 -5 -5 -5 -5 -5 -5 -5 -4 -4 -4 -4 -4 -4 -3 -3 -3 -3 -3 -3 -2 -2 -2 -2 -1 -1 -1 -1 -1 ----------- Run | Yrd Mat Min Exi Min Mat Gar Mat Gar Fac Gar Fac Gar Fac Gar Fac Was Fac Gar Fac Ext Cet Arc Hub Fac Gar Fac Gar Fac Gar Res Gar Res Qua Sec Gar Res Gar Tes Gar Acc Gar Acc Com Ac0 Matter Collected 22369 | 244 700 194 . 110 1244 522 292 318 385 8 422 271 645 988 252 102 467 595 902 390 108 107 130 104 213 406 1087 185 772 96 494 305 1085 958 1102 541 430 781 710 137 530 180 2679 178 Remotely 35 | . . . . . . . . . . . . . . . . . . . . . . . . . . . . . . . . . . . . . . . . . . . . 35 Salvage Created 39072 | . 842 155 . . 1834 408 1196 553 1116 14 495 569 1554 1499 272 563 934 549 1449 596 72 241 84 139 1083 920 2027 408 1643 43 346 753 2104 1318 909 379 595 682 668 700 2939 713 4444 1264 Parts 1680 | . 68 15 . . 90 33 70 25 43 . 22 28 76 45 15 8 55 23 54 16 . 17 3 7 37 63 84 18 55 . 15 32 92 57 54 15 26 31 21 15 111 49 166 26 Haulers Intercepted 12 | . 2 . . . 1 . 6 . . . . . 1 . . . 1 . . . . . . . . . . . . . . . 1 . . . . . . . . . . . Recyclers Shooed 23 | . 1 . . . . . 1 . 4 . . . 8 . . . 2 . 2 1 . . 1 . . . . 1 . . . . . . . 1 . . . . . . 1 . Parts Field Recycled . | . . . . . . . . . . . . . . . . . . . . . . . . . . . . . . . . . . . . . . . . . . . . . Retrieved Matter . | . . . . . . . . . . . . . . . . . . . . . . . . . . . . . . . . . . . . . . . . . . . . . Parts Self-Destructed . | . . . . . . . . . . . . . . . . . . . . . . . . . . . . . . . . . . . . . . . . . . . . . Prevented . | . . . . . . . . . . . . . . . . . . . . . . . . . . . . . . . . . . . . . . . . . . . . . Kills | -11 -10 -10 -10 -9 -8 -8 -8 -8 -7 -7 -7 -7 -6 -6 -5 -5 -5 -5 -5 -5 -5 -5 -5 -4 -4 -4 -4 -4 -4 -3 -3 -3 -3 -3 -3 -2 -2 -2 -2 -1 -1 -1 -1 -1 ------- Run | Yrd Mat Min Exi Min Mat Gar Mat Gar Fac Gar Fac Gar Fac Gar Fac Was Fac Gar Fac Ext Cet Arc Hub Fac Gar Fac Gar Fac Gar Res Gar Res Qua Sec Gar Res Gar Tes Gar Acc Gar Acc Com Ac0 Combat Hostiles Destroyed 537 | . 17 13 . . 25 17 18 14 25 . 5 16 24 13 3 2 17 13 21 5 1 . 1 3 18 13 23 7 11 . 5 8 22 20 12 4 7 7 7 11 31 10 41 27 Melee 5 | . . . . . 1 . . . . . . . . 1 . . . . . . . . . 1 . . 1 . . . . . . . 1 . . . . . . . . . Guns 175 | . 17 7 . . 21 12 18 11 23 . 4 13 17 6 3 . 8 . . . . . 1 . 3 7 3 . . . . . . . . . . . . . . . 1 . Cannons 219 | . . . . . . . . . . . 1 3 . 3 . 1 2 6 17 4 1 . . 2 13 5 9 6 8 . 3 6 18 8 9 3 3 5 4 9 23 10 23 14 AOE 70 | . . 6 . . 3 5 . 2 . . . . 7 3 . . 7 5 . . . . . . . . 6 . . . . . . 2 . . . . 1 . . . 13 10 Classes Destroyed 29 | . 6 . . . 6 . . 2 1 . . 1 3 1 . 1 . . . . . . . . . . . . . . . . 1 2 . . . 1 . 1 . 1 1 1 Worker 25 | . . . . . 3 . 3 . . . 2 . 3 . 1 . 3 . 3 . . . . . . 1 . . . . . 1 1 . . . . . . . . . 4 . Builder 15 | . . . . . 2 . 2 . . . . . 3 . 1 . 1 . . . . . . . . 2 . . . . . . 3 . . 1 . . . . . . . . Tunneler 2 | . . . . . . . . . 2 . . . . . . . . . . . . . . . . . . . . . . . . . . . . . . . . . . . Hauler 12 | . 2 . . . 1 . 6 . . . . . 1 . . . 1 . . . . . . . . . . . . . . . 1 . . . . . . . . . . . Recycler 24 | . 1 . . . 5 . 2 . 1 . 2 . 4 . . . . . 1 2 . . . . . . . . . . . 1 1 . . . . . . . . . 4 . Mechanic 3 | . . . . . . . . . . . . . 1 . . . . . . . . . . . . 1 . . . . . . 1 . . . . . . . . . . . Operator 14 | . 3 . . . 1 . . . . . . . 1 . . . . . . . . 7 . . . . . . . . . . . . . 1 . . . . . . 1 . Drone 1 | . . . . . . . . . . . . . . . . . . . . . . . . . . . . . . . . . . . . . . . . . . . . 1 Watcher 24 | . 3 . . . 5 . 4 . . . 1 . 2 . . . 2 . . 1 . . . . . 1 . . . 1 . . . . . . . 2 . 1 . . 1 . Swarmer 83 | . 3 11 . . . 10 5 . 5 . . 3 9 4 . . 4 6 3 . . . . . 2 1 5 . . . 1 1 4 . 1 1 1 . 2 . . . 1 . Cutter 8 | . . . . . . . . 2 . . . . . . . . . . . . . . . . 2 . . . . . . . . . . . . . . . 4 . . . Saboteur 4 | . . . . . . . . . . . . 1 . . . . . . . . . . . . . . 3 . . . . . . . . . . . . . . . . . Grunt 153 | . 14 2 . . 15 2 6 4 13 . 4 7 4 6 1 . 7 3 6 . . . . . 5 3 10 1 4 . 2 . 3 3 2 . . 1 1 2 17 . 5 . Brawler 9 | . . . . . 1 . 1 3 . . . . . . . . . . . . . . . . . . 1 . 1 . . . . 1 . . . . 1 . . . . . Duelist 11 | . . . . . 1 3 . 1 1 . . . 1 1 . . . 1 . . . . . 1 . . . . . . . . . . . . . . . . 1 . . . Protector 1 | . . . . . . . . . . . . . 1 . . . . . . . . . . . . . . . . . . . . . . . . . . . . . . . Researcher 2 | . . . . . . . . . . . . . . . . . . . . . . . . . . . . . . . . . . 1 . . . 1 . . . . . . Sentry 41 | . . . . . 6 1 5 2 3 . . 2 2 . . . . . 2 2 . . 1 . 3 . . . . . . 1 . . 1 1 1 1 . . 2 . 5 . Specialist 7 | . . . . . . . . . . . . . 2 2 . . . . . . . . . . . . . . . . 1 . . 1 1 . . . . . . . . . Hunter 64 | . . . . . 2 1 1 . 1 . . 2 2 . 1 . 3 . 4 1 . . . . 2 3 2 2 3 . . 2 5 2 1 3 4 . 4 . 4 . 9 . Programmer 111 | . . . . . . . . 2 3 . 1 3 4 . 1 . 3 3 6 . . . . 2 3 7 4 4 5 . . 2 9 6 7 . . 5 . 3 5 9 14 . Heavy 3 | . . . . . . . . . . . . . . . . . . . . . . . . . . . . . . . . . . . . . . . . . . 1 2 . Q-Series 1 | . . . . . . . . . . . . . . . . . . . . . . . . . . . . . . . . . . . . . . . . 1 . . . . Behemoth 15 | . . . . . . . . . . . . . . 1 . . . . . 2 . . . . 1 . 1 . 1 . 1 2 . . . . . . 1 1 2 . 2 . Compactor 2 | . . . . . . . . . . . . . . . . 2 . . . . . . . . . . . . . . . . . . . . . . . . . . . . Cetus Guard 1 | . . . . . . . . . . . . . . . . . . . . . 1 . . . . . . . . . . . . . . . . . . . . . . . S7 Guard 1 | . . . . . . . . . . . . . . . . . . . . . . . . . . . . . . . . . . 1 . . . . . . . . . . Enhanced Grunt 17 | . . . . . . . . . . . . . . . . . . . . . . . . . . . . . . . . . . . . . . . . . . . . 17 Enhanced Hunter 6 | . . . . . . . . . . . . . . . . . . . . . . . . . . . . . . . . . . . . . . . . . . . . 6 Tracker 4 | . . . . . . . . . . . . . . . . . . . . . . . . . . . . . . . . . . 2 . . . . . 2 . . . . Combat Programmer 6 | . . . . . . . . . . . . . . . . . . . . . . . . . . . . . . . . . . 2 . . . . . 2 . . 2 . Striker 1 | . . . . . . . . . . . . . . . . . . . . . . . . . . . . . . . . . . . . . . . . . . . 1 . Executioner 3 | . . . . . . . . . . . . . . . . . . . . . . . . . . . . . . . . . . 2 . . 1 . . . . . . . Alpha 7 1 | . . . . . . . . . . . . . . . . . . . . . . . . . . . . . . . . . . . . . . 1 . . . . . . Fortress 1 | . . . . . . . . . . . . . . . . . . . . . . . . . . . . . . . . . 1 . . . . . . . . . . . Butcher 1 | . . . . . . . . . . . 1 . . . . . . . . . . . . . . . . . . . . . . . . . . . . . . . . . Infiltrator 1 | . . . . . . . . . . . . . . . 1 . . . . . . . . . . . . . . . . . . . . . . . . . . . . . Best Kill Streak 15 | . 5 6 . . 10 4 3 5 3 . 2 4 15 4 1 1 8 5 3 1 1 2 1 2 4 4 9 5 4 1 1 4 3 7 2 1 4 3 2 3 5 3 15 7 Combat Bots Only 15 | . 4 6 . . 5 4 3 5 2 . 2 4 8 4 1 1 5 5 3 1 1 . 1 2 4 3 9 5 4 . 1 3 3 6 2 1 4 3 2 3 5 3 15 7 Max Kills in Single Turn 6 | . 1 2 . . 4 2 2 2 2 . 1 1 4 2 1 1 6 4 1 1 1 1 1 1 1 3 2 1 1 1 1 1 1 1 1 1 1 1 1 1 1 1 3 2 Gunslinging 1 | . . . . . . . 1 1 . . . . 1 . . . . . . . . . . . . . . . . . . . . . . . . . . . . . . . Exploded 4 | . . 2 . . 3 2 . 2 . . . . 2 2 . . 3 4 . . . . . . . . 2 . . . . . . 1 . . . . 1 . . . 3 2 Melee 1 | . . . . . 1 . . . . . . . . 1 . . . . . . . . . 1 . . 1 . . . . . . . 1 . . . . . . . . . Uniques/NPCs Destroyed 6 | . . . . . . . . . . . . . . . . . . . . . . . . . . . . . . . . . . . . . . . . . . . 2 4 MAIN.C Shell (-1/Command) MAIN.C (-1/Command) A8 (-1/Access_0) A6 (-1/Access_0) A5 (-1/Access_0) Architect (-1/Access_0) Combat | -11 -10 -10 -10 -9 -8 -8 -8 -8 -7 -7 -7 -7 -6 -6 -5 -5 -5 -5 -5 -5 -5 -5 -5 -4 -4 -4 -4 -4 -4 -3 -3 -3 -3 -3 -3 -2 -2 -2 -2 -1 -1 -1 -1 -1 -------- Run | Yrd Mat Min Exi Min Mat Gar Mat Gar Fac Gar Fac Gar Fac Gar Fac Was Fac Gar Fac Ext Cet Arc Hub Fac Gar Fac Gar Fac Gar Res Gar Res Qua Sec Gar Res Gar Tes Gar Acc Gar Acc Com Ac0 Hostile Shots Fired 4459 | . 48 56 . . 164 72 48 35 133 . 25 68 179 183 30 . 220 139 178 57 5 12 11 21 193 94 148 39 117 2 66 34 106 260 56 51 53 37 63 197 277 52 331 599 Missed 1227 | . 11 15 . . 40 26 16 14 40 . 7 22 63 35 12 . 70 46 37 12 2 5 2 11 32 29 49 10 38 . 19 7 28 41 17 11 16 12 29 30 53 14 74 232 Intercepted 2 | . . . . . . . . . . . . . . . . . . . . . . . . . . . . . . . . . . . . . . . . . . . 2 . Damage Taken 47650 | . 442 412 . . 2054 606 289 429 935 . 393 593 1248 1808 404 . 1801 1259 2689 971 111 200 284 158 2335 808 1662 611 1504 162 963 624 968 1819 521 615 517 451 527 2272 2388 375 4776 6666 Core 3623 | . 35 91 . . 155 58 86 127 94 . 9 79 164 88 53 . 77 161 78 12 . . . 43 120 69 161 40 142 . 101 57 114 185 31 . 57 34 36 91 160 15 239 561 Absorbed by Shields 23891 | . . . . . . 9 126 . 164 . 38 227 290 1086 20 . 200 428 288 136 54 66 51 128 1400 611 538 . 98 . 281 291 933 1434 380 505 377 334 503 1226 2244 276 3479 5670 Reduced by Siege Mode 2026 | . . . . . . . . . . . . . . 13 . . . . 117 . 7 . . . 186 56 89 32 160 . 48 78 48 199 . 37 21 3 17 132 145 . 294 344 Redirected to Core 28 | . . . . . . . . . . . . . . . . . . . . . . . . . . . . . . . . . 28 . . . . . . . . . . . Redirected to Shielding 335 | . . . . . . 8 . . . . . . . . . . . . . . . . . 7 20 32 63 . . . . . . . . . . . . . . . . 205 Ignored by Resistances 6950 | . . . . . . . . . 46 . 24 66 329 143 . . 214 468 . . . . . . . . . . . . . . . 1939 51 233 . 209 . 868 332 463 1541 24 Regen/Repaired (Parts) 20426 | . . . . . 289 . . . 80 . 255 . 250 . 355 . . . 3873 189 . . . 79 48 425 . 344 . . . 191 117 1765 . 23 . 1905 169 1228 1165 2061 2481 3134 Core Remaining (%) 56 | 100 . . . 49 . . . 22 . . . 74 . 70 . . . . . . . . 61 . . . . . 50 . . . . . 36 . . . 72 . . . . 31 Volleys Fired 3656 | . 52 23 . . 123 44 70 41 78 19 34 48 70 127 58 17 100 80 156 31 18 49 11 5 92 108 195 39 136 9 52 71 153 128 131 88 70 112 111 86 220 94 356 151 Largest 2 | . 2 2 . . 2 2 2 2 2 2 2 2 2 2 1 1 2 2 1 1 1 1 1 1 2 1 1 1 1 1 1 1 2 2 1 1 1 2 1 1 2 1 2 1 Hottest 353 | . 46 46 . . 50 58 160 170 170 170 170 165 188 188 113 113 207 201 113 98 113 98 80 98 353 113 113 105 105 105 120 120 214 214 120 120 120 214 94 200 244 200 200 200 Shots Fired 4382 | . 104 42 . . 241 83 140 76 140 23 51 90 122 221 58 17 106 85 162 32 18 52 11 5 121 114 194 38 135 9 57 74 161 132 128 88 70 113 111 86 222 94 405 151 Gun 1556 | . 104 37 . . 236 78 139 54 118 7 27 66 103 176 38 . 86 . . . . 4 3 . 31 65 65 . . . . . . . . . . . . . . . 119 . Cannon 2134 | . . . . . . . 1 16 15 8 17 20 2 24 3 11 7 50 115 22 18 47 . 3 77 30 98 27 99 3 38 54 134 111 83 61 44 73 58 84 190 71 269 151 Launcher 41 | . . 5 . . 5 5 . 2 . . . . 5 3 . . 3 2 . . . . . . . . 6 . . . . . . 5 . . . . . . . . . . Special 651 | . . . . . . . . 4 7 8 7 4 12 18 17 6 10 33 47 10 . 1 8 2 13 19 25 11 36 6 19 20 27 16 45 27 26 40 53 2 32 23 17 . Kinetic 598 | . 104 37 . . 236 78 24 . . . . . . . . . . . . . . . . . . . . . . . . . . . . . . . . . . . 119 . Thermal 2676 | . . . . . . . 116 70 133 15 44 86 105 200 41 11 93 30 77 22 18 51 3 3 108 95 125 17 57 3 24 54 91 84 64 61 7 48 25 84 147 71 245 148 Explosive 41 | . . 5 . . 5 5 . 2 . . . . 5 3 . . 3 2 . . . . . . . . 6 . . . . . . 5 . . . . . . . . . . Electromagnetic 416 | . . . . . . . . . . . . . . . . . . 20 38 . . . . . . . 38 10 42 . 14 . 43 27 19 . 37 25 33 . 43 . 24 3 Robot Hit Streak 41 | . 18 6 . . 9 8 21 18 22 16 18 14 21 32 22 5 31 14 20 8 7 7 4 4 18 12 17 11 15 6 9 19 12 10 12 10 14 15 15 14 41 22 38 19 Robot Miss Streak 8 | . 3 3 . . 3 3 7 3 6 . 5 5 8 2 2 1 3 2 3 3 1 4 2 1 3 7 5 3 4 . 3 4 4 4 4 4 6 3 2 3 3 4 2 3 Penetration Max 1 | . . . . . . 1 1 . . . . . . . . . . . . . . . . . . . . . . . . . . . . . . . . . . . . . Secondary Targets 18 | . . 1 . . 4 1 1 1 . . . 5 3 1 . . . . . . . . . . . . . . . . . . . . . . . . . . . . 1 . Max Gunslinging Chain 1 | . . 1 . . 1 1 1 1 . . . 1 1 1 . . . . . . . . . . . . . . . . . . . . . . . . . . . . 1 . Capacitor 1975 | . . . . . . . . . . . . . . . 41 11 79 . 100 22 18 51 3 . 33 95 163 27 99 3 30 54 132 109 83 61 44 71 58 84 186 71 247 . Shots Hit Robots 3057 | . 72 22 . . 158 44 108 33 101 9 35 62 104 181 45 13 68 58 109 24 13 35 7 4 86 67 129 28 84 6 31 46 92 82 81 55 43 75 76 65 191 59 336 120 Core Hits 1336 | . 33 13 . . 76 25 71 32 77 2 29 88 112 53 12 1 36 18 22 9 6 12 1 2 28 25 55 8 24 . 7 12 30 31 15 9 12 16 15 17 55 10 135 102 Critical Kills 31 | . 1 1 . . . . . . . . . . . . . 1 . 1 1 1 . 2 . . 1 2 1 . 2 . 1 2 . 5 . 1 . 2 . 1 . . 3 2 Critical Parts Destroyed 4 | . . . . . 1 1 1 . . . . . . . . . . . . . . . . . . . . . . . . . . . . . . . . . . . 1 . Critical Strikes 67 | . 1 1 . . 1 1 1 . . . . . 4 13 3 1 3 2 3 1 . 2 . . 1 2 5 . 2 . 1 2 2 5 . 1 . 2 . 1 . . 4 2 Burn 26 | . . . . . . . . . . . . . 4 13 3 . 3 . . . . . . . . . 3 . . . . . . . . . . . . . . . . . Meltdown 29 | . . . . . . . . . . . . . . . . 1 . 1 1 1 . 2 . . 1 2 1 . 2 . 1 2 . 5 . 1 . 2 . 1 . . 3 2 Destroy 6 | . 1 1 . . 1 1 1 . . . . . . . . . . . . . . . . . . . . . . . . . . . . . . . . . . . 1 . Corrupt 6 | . . . . . . . . . . . . . . . . . . 1 2 . . . . . . . 1 . . . . . 2 . . . . . . . . . . . Melee Attacks 4 | . . . . . . . 3 . . . . . . . . . . . . . . . . . . . . . . . . . 1 . . . . . . . . . . . Kinetic 1 | . . . . . . . . . . . . . . . . . . . . . . . . . . . . . . . . . 1 . . . . . . . . . . . Impact . | . . . . . . . . . . . . . . . . . . . . . . . . . . . . . . . . . . . . . . . . . . . . . Slashing . | . . . . . . . . . . . . . . . . . . . . . . . . . . . . . . . . . . . . . . . . . . . . . Piercing . | . . . . . . . . . . . . . . . . . . . . . . . . . . . . . . . . . . . . . . . . . . . . . Sneak Attacks 3 | . . . . . . . 3 . . . . . . . . . . . . . . . . . . . . . . . . . . . . . . . . . . . . . Combat Hostiles . | . . . . . . . . . . . . . . . . . . . . . . . . . . . . . . . . . . . . . . . . . . . . . Follow-up Attacks . | . . . . . . . . . . . . . . . . . . . . . . . . . . . . . . . . . . . . . . . . . . . . . Damage Inflicted 131634 | . 1120 768 . . 3371 1193 2571 986 2450 24 707 1476 3719 5646 966 439 3139 2004 3137 742 535 1171 147 89 2985 2213 5043 823 2307 27 683 1611 3224 3596 2209 1887 957 2126 1509 4076 7494 1954 18132 32378 Guns 27944 | . 1115 320 . . 2574 716 2517 789 2386 24 497 1243 2005 4496 943 . 1740 . . . . 57 29 . 598 1226 1604 . . . . . . . . . . . . . . . 3065 . Cannons 75612 | . . . . . . . . 33 . . 203 232 36 519 . 439 196 1371 3009 597 535 1114 . 85 2340 647 2154 728 2307 . 683 1602 3165 2931 2200 1778 957 1949 1509 3521 7429 1917 11536 17890 Explosions 26381 | . . 434 . . 776 477 . 164 . . . . 1644 594 . . 1177 633 . . . . . . . 329 1267 . . . . . . 665 . . . . . 460 . 31 3242 14488 Melee . | . . . . . . . . . . . . . . . . . . . . . . . . . . . . . . . . . . . . . . . . . . . . . Ramming 1697 | . 5 14 . . 21 . 54 . 64 . 7 1 34 37 23 . 26 . 128 145 . . 118 4 47 11 18 95 . 27 . 9 59 . 9 109 . 177 . 95 65 6 289 . Kinetic 8039 | . 1115 320 . . 2574 716 249 . . . . . . . . . . . . . . . . . . . . . . . . . . . . . . . . . . . 3065 . Thermal 104516 | . . . . . . . 2268 822 2386 24 700 1475 2142 5097 943 439 1997 977 1908 597 535 1171 29 85 2938 2202 3168 535 1087 . 513 1602 2184 2370 1854 1778 44 1458 703 3981 6020 1948 14264 32272 Explosive 7200 | . . 434 . . 776 477 . 164 . . . . 1543 512 . . 1048 633 . . . . . . . . 948 . . . . . . 665 . . . . . . . . . . Electromagnetic 10182 | . . . . . . . . . . . . . . . . . 68 394 1101 . . . . . . . 909 193 1220 . 170 . 981 561 346 . 913 491 806 . 1409 . 514 106 Impact . | . . . . . . . . . . . . . . . . . . . . . . . . . . . . . . . . . . . . . . . . . . . . . Slashing . | . . . . . . . . . . . . . . . . . . . . . . . . . . . . . . . . . . . . . . . . . . . . . Piercing . | . . . . . . . . . . . . . . . . . . . . . . . . . . . . . . . . . . . . . . . . . . . . . Highest Corruption 54 | . 2 2 2 2 3 3 3 5 1 1 1 5 . . 1 14 17 5 8 8 5 11 14 . 7 13 22 23 54 1 10 12 20 23 23 . . . . . . . . . Average Corruption 10 | . 2 2 2 2 2 2 2 4 1 1 1 2 . . 1 8 13 4 6 7 5 4 10 . 6 10 18 22 34 1 9 10 16 22 23 . . . . . . . . . Corruption Purged 49 | . . . . . 1 3 . . . 1 1 . . . 1 4 17 . . 5 . 16 . . . . . . . . . . . . . . . . . . . . . . Corruption Blocked . | . . . . . . . . . . . . . . . . . . . . . . . . . . . . . . . . . . . . . . . . . . . . . Effects 1203 | . 15 12 9 5 13 5 25 31 18 2 3 15 . . 5 6 78 18 141 73 15 12 . . 6 90 99 30 85 2 48 40 132 82 88 . . . . . . . . . Message Errors 286 | . 6 1 2 2 4 2 8 12 3 . 1 4 . . 4 1 20 4 28 21 4 2 . . 2 18 22 9 13 2 12 10 31 17 21 . . . . . . . . . Matter Fused 296 | . 3 . 5 1 5 3 5 6 4 1 2 5 . . 1 2 12 5 35 20 5 2 . . 1 19 23 4 24 . 13 8 36 20 26 . . . . . . . . . Heat Flow Errors 157 | . 2 4 . 1 . . 4 4 4 . . 1 . . . 2 10 2 24 9 2 2 . . . 11 18 3 5 . 5 7 13 13 11 . . . . . . . . . Energy Discharges 114 | . . 4 1 . 2 . 2 1 2 . . 2 . . . 1 11 1 11 6 1 . . . 1 7 11 3 8 . 3 5 16 10 5 . . . . . . . . . Parts Rejected 20 | . . . . . . . . . . . . 1 . . . . 1 . 1 . . . . . . 4 . 2 2 . 1 2 1 5 . . . . . . . . . . Parts Fused 12 | . 1 . . . . . . . . . . . . . . . . . 1 . . . . . . . 3 1 1 . . . 1 2 2 . . . . . . . . . Data Loss (minor) 130 | . 3 1 . 1 . . . 5 2 1 . 1 . . . . 6 1 21 12 1 2 . . 1 15 12 3 5 . 5 4 11 9 8 . . . . . . . . . Data Loss (major) 53 | . . . 1 . 1 . 2 1 . . . 1 . . . . 7 2 7 2 1 1 . . 1 7 3 . 5 . 1 1 2 2 5 . . . . . . . . . Misfires 65 | . . 1 . . . . 2 . 2 . . . . . . . 6 1 7 1 . 2 . . . 7 2 . 9 . 6 3 11 3 2 . . . . . . . . . Alerts 35 | . . 1 . . 1 . 1 2 1 . . . . . . . 1 2 5 2 1 1 . . . 1 2 3 1 . 1 . 5 1 3 . . . . . . . . . Misdirections 5 | . . . . . . . . . . . . . . . . . 1 . . . . . . . . . . 1 2 . . . 1 . . . . . . . . . . . Weapon Failures 30 | . . . . . . . 1 . . . . . . . . . 3 . 1 . . . . . . 1 3 1 10 . 1 . 4 . 5 . . . . . . . . . Overload Shots 2 | . . . . . . . . . . . . . . . . . . . . . . . . . 1 . . . . . . . . . . . . . . . 1 . . . Overflow Damage 4531 | . . 97 . . 26 28 . . 5 . . 8 25 17 . . 94 149 213 52 . 75 24 . . 14 38 24 29 3 21 92 108 195 105 121 . 133 60 189 101 199 1197 1089 Projectiles 3167 | . . . . . . . . . . . . 8 . 9 . . . 48 196 2 . 75 . . . 13 6 24 29 . 21 92 108 169 105 68 . 115 60 171 101 199 861 687 Explosions 1130 | . . 97 . . 26 28 . . . . . . 25 8 . . 94 101 . . . . . . . 1 32 . . . . . . 26 . . . . . . . . 290 402 Melee 234 | . . . . . . . . . 5 . . . . . . . . . 17 50 . . 24 . . . . . . 3 . . . . . 53 . 18 . 18 . . 46 . Knockbacks 10 | . . . . . . . . . 1 . . . . . . . . . 2 . . . . 1 . . . 1 . . . . . . . 1 . 1 . 1 . . 2 . Impact 10 | . . . . . . . . . 1 . . . . . . . . . 2 . . . . 1 . . . 1 . . . . . . . 1 . 1 . 1 . . 2 . Kinetic . | . . . . . . . . . . . . . . . . . . . . . . . . . . . . . . . . . . . . . . . . . . . . . Secondary . | . . . . . . . . . . . . . . . . . . . . . . . . . . . . . . . . . . . . . . . . . . . . . Self-Inflicted Damage 1305 | . . 44 . . 52 . . 29 23 . 3 . 164 . . . 61 73 . . . . . . . 115 . . . . . . 110 . . . . . . . . 108 330 193 Shots 19 | . . 1 . . 2 . . 1 . . . . 2 . . . 1 1 . . . . . . . 2 . . . . . . 1 . . . . . . . . 1 4 3 Rammed 87 | . 2 2 . . 3 . 9 . 3 . 1 1 2 5 2 . 1 . 5 5 . . 5 . 4 . 2 4 . 1 . 3 7 . . 3 . 8 . 2 1 1 5 . Targets Rammed 103 | . 2 2 . . 7 . 10 . 3 . 1 1 2 6 2 . 2 . 6 5 . . 5 1 4 1 2 4 . 1 . 3 7 . 1 3 . 11 . 2 1 1 7 . Kicked . | . . . . . . . . . . . . . . . . . . . . . . . . . . . . . . . . . . . . . . . . . . . . . Crushed 16 | . . . . . 4 . 1 . . . . . . 1 . . 1 . 1 . . . . 1 . 1 . . . . . . . . 1 . . 3 . . . . 2 . Highest Temperature 600 | . 250 193 . 154 199 62 246 332 387 200 90 165 600 565 240 322 582 202 396 384 560 399 69 . 505 365 390 251 290 171 290 331 396 440 335 436 124 276 340 362 352 192 424 210 Average Temperature 104 | . 46 62 . 78 46 25 64 68 86 71 22 36 86 139 109 138 135 31 129 141 194 150 39 . 121 67 111 74 101 94 94 108 91 144 112 171 30 89 108 127 111 101 114 61 Received Heat Transfer 5137 | . 204 54 . . 738 90 89 120 294 . 120 86 189 703 39 . 209 93 259 191 . 17 19 12 378 20 213 . 183 9 199 34 28 28 87 36 29 58 36 28 48 16 181 . Effects 70 | . . . . . . . . . . . . . 5 2 . 1 6 . 12 5 1 . . . 5 1 6 . . . . . . 7 . 4 . . 1 2 . . 12 . Shutdowns 21 | . . . . . . . . . . . . . 1 . . . 4 . 3 . . . . . 1 1 2 . . . . . . 2 . 1 . . . . . . 6 . Energy Bleed 11 | . . . . . . . . . . . . . . . . 1 1 . 4 1 . . . . . . 1 . . . . . . 1 . 1 . . . . . . 1 . Interference 21 | . . . . . . . . . . . . . 3 . . . . . 3 3 . . . . . . 3 . . . . . . 2 . . . . . 2 . . 5 . Matter Decay 4 | . . . . . . . . . . . . . 1 1 . . . . . . . . . . . . . . . . . . . 1 . 1 . . . . . . . . Short Circuit 4 | . . . . . . . . . . . . . . . . . 1 . . . 1 . . . 1 . . . . . . . . 1 . . . . . . . . . . Damage (minor) 6 | . . . . . . . . . . . . . . 1 . . . . 2 1 . . . . . . . . . . . . . . . 1 . . 1 . . . . . Damage (major) 3 | . . . . . . . . . . . . . . . . . . . . . . . . . 3 . . . . . . . . . . . . . . . . . . . Siege Activations 110 | . . . . . . . . . . . . . . 1 . . . . 6 1 1 . . . 5 5 9 5 4 . 1 4 10 7 3 3 2 3 2 4 7 3 16 8 Total Turns 2478 | . . . . . . . . . . . . . . 98 . . . . 90 1 26 . . . 116 121 82 38 79 . 17 29 164 123 12 51 22 19 41 186 145 29 797 192 Longest Duration 399 | . . . . . . . . . . . . . . 98 . . . . 22 1 26 . . . 36 50 30 20 67 . 17 13 66 67 8 44 21 9 23 120 71 20 399 39 Robots Corrupted 53 | . . . . . . . . . . . . . . . . . . 1 4 3 . . . . . . 4 1 6 1 1 . 4 4 2 1 4 1 3 1 8 . 3 1 Combat Hostiles 34 | . . . . . . . . . . . . . . . . . . 1 2 . . . . . . . 3 1 1 . 1 . 3 4 2 . 4 1 2 . 7 . 1 1 Parts Fried 109 | . . . . . . . . . . . . . . . . . . 1 10 6 . . . . . . 8 1 17 3 2 . 8 11 4 . 3 4 6 2 11 . 8 4 Impact Corruptions 14 | . . . . . . . . . 1 . . . . . . . . . 2 3 . . 1 . . . . . . 1 . . . . . 1 . 2 . 1 . . 2 . Robots Melted 38 | . . . . . . . . 1 2 . . . . . . 1 . 1 2 1 . 2 . . 2 2 1 . 2 . 1 2 . 6 . 2 . 2 . 2 1 . 3 2 Combat Hostiles 33 | . . . . . . . . 1 2 . . . . . . 1 . 1 2 1 . . . . 2 1 1 . 2 . 1 2 . 6 . 1 . 1 . 2 1 . 3 2 Parts Melted 167 | . . . . . . . 7 4 21 . 3 2 7 3 5 2 11 3 9 3 1 7 . 1 7 6 3 1 4 . 2 1 1 11 6 6 . 3 . 2 7 5 8 5 Heat Transferred 80730 | . . . . . . . 5175 1737 5375 50 1092 1158 2391 7167 1333 407 2579 777 2006 900 647 1750 37 100 2621 2222 4061 481 1036 . 462 1313 1665 1812 1349 1349 37 1034 573 2667 4539 1486 7230 10112 Parts Sabotaged 2 | . . . . . . . . . . . . . . . . . . . . . . . . . . . 2 . . . . . . . . . . . . . . . . . Parts Stolen . | . . . . . . . . . . . . . . . . . . . . . . . . . . . . . . . . . . . . . . . . . . . . . Parts Stripped 18 | . . . . . . . . . . . . . . . . . . . . . . . . . . . . . . . . . 18 . . . . . . . . . . . Power Chain Reactions 5 | . . . . . . . . . . . . . . 2 . . 1 . . . . . . . . . 2 . . . . . . . . . . . . . . . . . Alert | -11 -10 -10 -10 -9 -8 -8 -8 -8 -7 -7 -7 -7 -6 -6 -5 -5 -5 -5 -5 -5 -5 -5 -5 -4 -4 -4 -4 -4 -4 -3 -3 -3 -3 -3 -3 -2 -2 -2 -2 -1 -1 -1 -1 -1 ------- Run | Yrd Mat Min Exi Min Mat Gar Mat Gar Fac Gar Fac Gar Fac Gar Fac Was Fac Gar Fac Ext Cet Arc Hub Fac Gar Fac Gar Fac Gar Res Gar Res Qua Sec Gar Res Gar Tes Gar Acc Gar Acc Com Ac0 Peak Influence 1087 | . 245 369 . . 440 622 400 533 332 614 460 692 401 967 909 312 461 752 601 296 267 280 561 927 1087 570 670 367 477 284 213 135 276 377 791 454 389 338 400 322 546 375 211 . Initial 648 | . . 64 . . . 89 302 36 279 107 322 65 363 160 507 308 77 176 394 290 . 30 . 200 648 570 18 351 181 267 22 119 . 79 226 444 . 218 98 240 3 327 25 . Average 239 | . 124 249 . . 141 430 196 289 117 353 208 392 242 458 635 302 165 439 205 90 82 121 249 427 891 275 356 295 303 178 92 69 84 100 592 79 196 140 214 132 226 147 113 . Maximum Alert Level 3 | . 1 1 . . 2 2 2 2 1 2 2 2 2 3 3 1 2 3 2 1 1 1 2 3 3 2 2 1 2 1 1 . 1 1 3 2 1 1 2 1 2 1 2 . Low Security (%) 44 | 100 95 30 . 100 71 13 39 24 82 25 47 19 50 21 . 3 70 11 57 83 96 65 35 . . 33 20 15 6 41 96 100 82 85 . 86 57 68 59 68 50 66 19 . Level 1 25 | . 4 69 . . 12 9 54 48 17 37 46 27 49 27 7 96 28 37 25 16 3 34 51 68 . 43 31 84 77 58 3 . 17 14 22 . 42 31 34 31 29 33 6 . Level 2 26 | . . . . . 15 77 5 26 . 36 6 52 . 30 59 . 1 44 17 . . . 12 15 11 23 47 . 15 . . . . . 48 13 . . 5 . 19 . 74 . Level 3 3 | . . . . . . . . . . . . . . 20 33 . . 7 . . . . . 16 88 . . . . . . . . . 29 . . . . . . . . . Level 4 . | . . . . . . . . . . . . . . . . . . . . . . . . . . . . . . . . . . . . . . . . . . . . . Level 5 . | . . . . . . . . . . . . . . . . . . . . . . . . . . . . . . . . . . . . . . . . . . . . . High Security . | . . . . . . . . . . . . . . . . . . . . . . . . . . . . . . . . . . . . . . . . . . . . . Max Security . | . . . . . . . . . . . . . . . . . . . . . . . . . . . . . . . . . . . . . . . . . . . . . Squads Dispatched 190 | . 6 1 . . 5 . 1 . 10 . 8 . 8 . 8 . 7 . 10 2 . . 4 10 . 5 . 3 . 3 . 24 10 15 . 10 . 20 . 7 . 7 6 . Investigation 23 | . 4 . . . 1 . . . 2 . 2 . 1 . 1 . 1 . 2 . . . . 2 . 1 . 1 . 1 . 1 . . . 1 . 1 . 1 . . . . Extermination 38 | . . . . . . . . . 3 . 2 . 2 . 2 . 1 . 4 . . . . 1 . 3 . . . . . 1 3 2 . . . 3 . 2 . 3 6 . Reinforcement 66 | . 2 . . . 1 . 1 . 3 . 4 . 3 . 4 . 5 . 3 2 . . 3 1 . 1 . 2 . 2 . 6 4 7 . 4 . 7 . . . 1 . . Assault 12 | . . 1 . . . . . . . . . . . . 1 . . . 1 . . . 1 1 . . . . . . . 4 1 . . 1 . . . 1 . . . . Garrison 39 | . . . . . 3 . . . 2 . . . 2 . . . . . . . . . . 5 . . . . . . . 12 2 3 . 1 . 6 . . . 3 . . Intercept 12 | . . . . . . . . . . . . . . . . . . . . . . . . . . . . . . . . . . 3 . 3 . 3 . 3 . . . . Searches Triggered . | . . . . . . . . . . . . . . . . . . . . . . . . . . . . . . . . . . . . . . . . . . . . . Construction Impeded 8 | . . . . . . . . . . . 1 . 1 . . . 2 . 1 1 . . . . . . . . . . . . 1 . . 1 . . . . . . . . Haulers Reinforced 4 | . . . . . . . . . . . 1 . 1 . 2 . . . . . . . . . . . . . . . . . . . . . . . . . . . . . Active Scanning Responses . | . . . . . . . . . . . . . . . . . . . . . . . . . . . . . . . . . . . . . . . . . . . . . Cargo Convoy Interrupts 3 | . . . . . . . . . . . . . 1 . 1 . 1 . . . . . . . . . . . . . . . . . . . . . . . . . . . Alert ID Control Effect 300 | . . . . . . . . . . . . . . 7 26 . . 14 26 6 . . 2 . 1 4 12 1 20 4 6 7 11 4 13 34 12 34 15 3 11 10 17 . Stealth | -11 -10 -10 -10 -9 -8 -8 -8 -8 -7 -7 -7 -7 -6 -6 -5 -5 -5 -5 -5 -5 -5 -5 -5 -4 -4 -4 -4 -4 -4 -3 -3 -3 -3 -3 -3 -2 -2 -2 -2 -1 -1 -1 -1 -1 --------- Run | Yrd Mat Min Exi Min Mat Gar Mat Gar Fac Gar Fac Gar Fac Gar Fac Was Fac Gar Fac Ext Cet Arc Hub Fac Gar Fac Gar Fac Gar Res Gar Res Qua Sec Gar Res Gar Tes Gar Acc Gar Acc Com Ac0 Distress Signals 87 | . 1 . . . 6 . 1 . 3 . . 1 2 . 3 . 3 . 3 4 2 . 3 2 . 3 . 3 . 2 . 5 1 2 . 1 . 1 . . . 3 32 . Communications Jammed 558 | . . . . . . . . . . . . . . . . . . . 8 . . . 36 8 . 8 13 12 . 5 . 6 43 . . 78 . 311 . 5 . . 25 . Distress Signals 548 | . . . . . . . . . . . . . . . . . . . 8 . . . 36 6 . 8 13 12 . 5 . 6 43 . . 76 . 311 . 5 . . 19 . Times Spotted 1466 | . 24 19 . . 40 17 31 19 41 . 23 27 55 44 37 4 25 45 72 25 14 25 17 21 40 43 49 15 52 5 33 32 53 34 52 36 39 62 47 24 60 24 77 64 Peak Tracking Total 10 | . 6 6 . . 6 5 3 4 8 . 3 4 10 8 10 2 7 5 4 4 5 2 4 7 8 6 8 4 6 2 5 7 5 5 5 7 6 5 7 4 5 6 6 6 Tactical Retreats 32 | . 1 1 . . 2 . 1 . 3 . 1 2 1 2 1 . 3 1 . . . . . . . 1 1 1 . . . . 4 . 1 . . 1 1 . 3 . . . Traps | -11 -10 -10 -10 -9 -8 -8 -8 -8 -7 -7 -7 -7 -6 -6 -5 -5 -5 -5 -5 -5 -5 -5 -5 -4 -4 -4 -4 -4 -4 -3 -3 -3 -3 -3 -3 -2 -2 -2 -2 -1 -1 -1 -1 -1 ------- Run | Yrd Mat Min Exi Min Mat Gar Mat Gar Fac Gar Fac Gar Fac Gar Fac Was Fac Gar Fac Ext Cet Arc Hub Fac Gar Fac Gar Fac Gar Res Gar Res Qua Sec Gar Res Gar Tes Gar Acc Gar Acc Com Ac0 Traps Triggered 59 | . 3 . . . 1 . 2 . . . 1 7 4 3 1 . . . . 4 . . . . 5 1 3 . 3 2 2 . 2 . . 1 1 . 5 . 2 1 5 . Indirectly . | . . . . . . . . . . . . . . . . . . . . . . . . . . . . . . . . . . . . . . . . . . . . . Trap Hack Attempts . | . . . . . . . . . . . . . . . . . . . . . . . . . . . . . . . . . . . . . . . . . . . . . Triggered . | . . . . . . . . . . . . . . . . . . . . . . . . . . . . . . . . . . . . . . . . . . . . . Disarmed . | . . . . . . . . . . . . . . . . . . . . . . . . . . . . . . . . . . . . . . . . . . . . . Reprogrammed . | . . . . . . . . . . . . . . . . . . . . . . . . . . . . . . . . . . . . . . . . . . . . . Reused 3 | . . . . . . . . . . . . . . . . . . . . . . . . . . . . . . . 2 . 1 . . . . . . . . . . . Traps Extracted 1 | . . . . . . . . . . . . . . . . . . . . . . . . . . . . . . . . . 1 . . . . . . . . . . . Installed 6 | . . . . . . . . . . . . . . . . . . . . . . . . . . . . . . . 3 . 3 . . . . . . . . . . . Triggered 4 | . . . . . . . . . . . . . . . . . 1 . . . . . . . . . . . . . 2 . 1 . . . . . . . . . . . Most Traps Carried 8 | . . . . . . 4 4 4 4 4 4 8 5 5 5 5 5 5 5 5 5 5 5 5 5 5 5 5 5 5 5 2 2 . . . . . . . . . . . Machines | -11 -10 -10 -10 -9 -8 -8 -8 -8 -7 -7 -7 -7 -6 -6 -5 -5 -5 -5 -5 -5 -5 -5 -5 -4 -4 -4 -4 -4 -4 -3 -3 -3 -3 -3 -3 -2 -2 -2 -2 -1 -1 -1 -1 -1 ---------- Run | Yrd Mat Min Exi Min Mat Gar Mat Gar Fac Gar Fac Gar Fac Gar Fac Was Fac Gar Fac Ext Cet Arc Hub Fac Gar Fac Gar Fac Gar Res Gar Res Qua Sec Gar Res Gar Tes Gar Acc Gar Acc Com Ac0 Machines Disabled 230 | . . 1 . . . 3 . 2 1 6 15 7 5 10 14 . 10 11 18 3 . 3 2 1 4 11 5 . 5 . 5 1 10 16 5 1 7 12 8 1 5 6 10 6 Max in Single Turn 8 | . . 1 . . . 1 . 1 1 1 1 1 5 1 . . 8 1 1 . . 1 . . 1 7 1 . 1 . 1 . 1 1 1 . 1 1 1 . 1 2 1 1 Garrison Access 6 | . . . . . . . . . . . . . . . . . . . 1 . . . 1 . . . . . . . . 1 1 . . 1 . . . 1 . . . . Garrison Relay 63 | . . . . . . 2 . 2 . 6 . 4 . 5 . . . 9 . . . . . . 4 . 4 . 5 . 4 . . . 6 . 4 . 4 . 4 . . . Machines Repaired . | . . . . . . . . . . . . . . . . . . . . . . . . . . . . . . . . . . . . . . . . . . . . . Machines Dismantled . | . . . . . . . . . . . . . . . . . . . . . . . . . . . . . . . . . . . . . . . . . . . . . Machines Sabotaged . | . . . . . . . . . . . . . . . . . . . . . . . . . . . . . . . . . . . . . . . . . . . . . Overloaded Fab Kills . | . . . . . . . . . . . . . . . . . . . . . . . . . . . . . . . . . . . . . . . . . . . . . Hacking | -11 -10 -10 -10 -9 -8 -8 -8 -8 -7 -7 -7 -7 -6 -6 -5 -5 -5 -5 -5 -5 -5 -5 -5 -4 -4 -4 -4 -4 -4 -3 -3 -3 -3 -3 -3 -2 -2 -2 -2 -1 -1 -1 -1 -1 --------- Run | Yrd Mat Min Exi Min Mat Gar Mat Gar Fac Gar Fac Gar Fac Gar Fac Was Fac Gar Fac Ext Cet Arc Hub Fac Gar Fac Gar Fac Gar Res Gar Res Qua Sec Gar Res Gar Tes Gar Acc Gar Acc Com Ac0 Machines Accessed 161 | . 8 . 1 1 10 1 7 2 11 2 10 1 7 2 5 . 4 2 14 5 1 . 3 4 1 6 1 2 1 2 3 2 9 7 3 1 2 8 3 1 3 . 5 . Terminals 112 | . 6 . . 1 7 1 3 2 7 2 6 1 2 2 2 . 2 2 9 5 1 . 3 2 1 3 1 . 1 1 3 1 7 6 3 . 2 7 3 . 3 . 4 . Fabricators 10 | . . . . . . . . . 1 . 1 . 1 . 1 . 1 . 2 . . . . 1 . 1 . 1 . . . . . . . . . . . . . . . . Repair Stations 12 | . . . . . 1 . . . 2 . 1 . 2 . 1 . . . 2 . . . . . . 1 . . . . . . 1 . . . . . . . . . 1 . Recycling Units 4 | . 2 . . . . . 1 . . . . . 1 . . . . . . . . . . . . . . . . . . . . . . . . . . . . . . . Scanalyzers 5 | . . . . . 1 . 2 . . . 1 . . . . . . . . . . . . . . . . . . . . . 1 . . . . . . . . . . . Garrison Access 17 | . . . . . 1 . 1 . 1 . 1 . 1 . 1 . 1 . 1 . . . . 1 . 1 . 1 . 1 . 1 . 1 . 1 . 1 . 1 . . . . Total Hacks 335 | . 19 . 1 2 28 3 24 5 32 5 24 2 12 3 11 . 7 4 26 8 1 . 6 8 1 13 1 5 1 3 6 5 15 9 6 4 3 13 5 3 4 . 7 . Successful 151 | . 7 . 1 . 18 2 16 2 16 2 13 1 4 . 7 . 4 1 9 3 . . 3 4 . 5 1 5 . 1 1 3 2 6 2 2 2 4 1 1 . . 2 . Failed 184 | . 12 . . 2 10 1 8 3 16 3 11 1 8 3 4 . 3 3 17 5 1 . 3 4 1 8 . . 1 2 5 2 13 3 4 2 1 9 4 2 4 . 5 . Catastrophic 46 | . 4 . . . 3 . . 1 1 1 3 1 . 2 1 . 2 . 4 . . . 1 . . 2 . . . . 2 1 2 2 2 . . 4 2 . 3 . 2 . Database Lockouts . | . . . . . . . . . . . . . . . . . . . . . . . . . . . . . . . . . . . . . . . . . . . . . Manual 156 | . 21 . 1 2 17 1 9 1 25 1 4 1 5 . 5 . 3 . 11 3 1 . 1 3 . 7 . 1 . . . 3 10 3 . 2 . 7 . 2 . . 6 . Terminals 228 | . 16 . . 2 23 3 9 5 23 5 14 2 4 3 5 . 2 4 15 8 1 . 6 2 1 7 1 . 1 2 6 3 13 8 6 . 3 10 5 . 4 . 6 . Fabricators 22 | . . . . . . . . . 2 . 2 . 2 . 2 . 2 . 4 . . . . 4 . 2 . 2 . . . . . . . . . . . . . . . . Repair Stations 22 | . . . . . 2 . . . 5 . 2 . 2 . 3 . . . 5 . . . . . . 1 . . . . . . 1 . . . . . . . . . 1 . Recycling Units 8 | . 3 . . . . . 3 . . . . . 2 . . . . . . . . . . . . . . . . . . . . . . . . . . . . . . . Scanalyzers 17 | . . . . . 2 . 10 . . . 4 . . . . . . . . . . . . . . . . . . . . . 1 . . . . . . . . . . . Garrison Access 37 | . . . . . 1 . 2 . 2 . 2 . 2 . 1 . 3 . 2 . . . . 2 . 3 . 3 . 1 . 2 . 1 . 4 . 3 . 3 . . . . Terminal Hacks 48 | . 3 . 1 . 5 2 3 2 2 2 5 1 . . 2 . . 1 2 1 . . 3 . . . 1 . . . 1 1 . 3 2 . 2 1 1 . . . 1 . Robot Schematic 1 | . 1 . . . . . . . . . . . . . . . . . . . . . . . . . . . . . . . . . . . . . . . . . . . Prototype ID Bank 4 | . 2 . . . 2 . . . . . . . . . . . . . . . . . . . . . . . . . . . . . . . . . . . . . . . Open Door 8 | . . . . . . . . . . . . . . . 1 . . . . 1 . . . . . . . . . . . . . 3 . . . 1 1 . . . 1 . Branch Access Points 2 | . . . . . . . . . . . . . . . . . . . 1 . . . . . . . . . . . . 1 . . . . . . . . . . . . Emergency Access Points 5 | . . . . . . . . 1 . 1 . . . . . . . . . . . . . . . . 1 . . . . . . . 1 . 1 . . . . . . . Machine Index 1 | . . . . . . . . . . . 1 . . . . . . . . . . . . . . . . . . . . . . . . . . . . . . . . . Terminal Index 3 | . . . . . . . 1 . 1 . . . . . . . . . . . . . 1 . . . . . . . . . . . . . . . . . . . . . Unreport Threat 8 | . . . . . 2 . 2 . . . 3 . . . 1 . . . . . . . . . . . . . . . . . . . . . . . . . . . . . Recall Reinforcements 1 | . . . . . . . . . . . . . . . . . . . . . . . 1 . . . . . . . . . . . . . . . . . . . . . Hauler Manifests 5 | . . . . . 1 . . . 1 . 1 . . . . . . . 1 . . . 1 . . . . . . . . . . . . . . . . . . . . . Garrison Registry 3 | . . . . . . 1 . . . . . . . . . . . 1 . . . . . . . . . . . . 1 . . . . . . . . . . . . . Patrol Navigation 1 | . . . . . . . . 1 . . . . . . . . . . . . . . . . . . . . . . . . . . . . . . . . . . . . Security Stations 5 | . . . . . . 1 . . . 1 . 1 . . . . . . . . . . . . . . . . . . . . . . 1 . 1 . . . . . . . Derelict Proto ID Bank 1 | . . . 1 . . . . . . . . . . . . . . . . . . . . . . . . . . . . . . . . . . . . . . . . . Fabricator Hacks 11 | . . . . . . . . . 2 . . . . . 2 . 1 . . . . . . 2 . 2 . 2 . . . . . . . . . . . . . . . . Load Schematic 6 | . . . . . . . . . 1 . . . . . 1 . 1 . . . . . . 1 . 1 . 1 . . . . . . . . . . . . . . . . Build 5 | . . . . . . . . . 1 . . . . . 1 . . . . . . . . 1 . 1 . 1 . . . . . . . . . . . . . . . . Repair Station Hacks 11 | . . . . . 2 . . . 2 . 2 . . . 1 . . . 4 . . . . . . . . . . . . . . . . . . . . . . . . . Scan Component 6 | . . . . . 1 . . . 1 . 1 . . . 1 . . . 2 . . . . . . . . . . . . . . . . . . . . . . . . . Repair 5 | . . . . . 1 . . . 1 . 1 . . . . . . . 2 . . . . . . . . . . . . . . . . . . . . . . . . . Recycling Unit Hacks 1 | . . . . . . . 1 . . . . . . . . . . . . . . . . . . . . . . . . . . . . . . . . . . . . . Retrieve Components 1 | . . . . . . . 1 . . . . . . . . . . . . . . . . . . . . . . . . . . . . . . . . . . . . . Scanalyzer 15 | . . . . . 2 . 8 . . . 4 . . . . . . . . . . . . . . . . . . . . . 1 . . . . . . . . . . . Insert Component 8 | . . . . . 1 . 4 . . . 2 . . . . . . . . . . . . . . . . . . . . . 1 . . . . . . . . . . . Analyze 7 | . . . . . 1 . 4 . . . 2 . . . . . . . . . . . . . . . . . . . . . . . . . . . . . . . . . Garrison Access Hacks 26 | . . . . . 1 . 2 . 2 . 2 . 2 . . . 2 . 2 . . . . 1 . 1 . 2 . 1 . 2 . 1 . 2 . 2 . 1 . . . . Unlock Access 14 | . . . . . 1 . 1 . 1 . 1 . 1 . . . 1 . . . . . . 1 . 1 . 1 . 1 . . . 1 . 1 . 1 . 1 . . . . Seal Access 2 | . . . . . . . . . . . . . . . . . . . 1 . . . . . . . . . . . . 1 . . . . . . . . . . . . Coupler Status 10 | . . . . . . . 1 . 1 . 1 . 1 . . . 1 . 1 . . . . . . . . 1 . . . 1 . . . 1 . 1 . . . . . . Unauthorized Hacks 39 | . 4 . . . 8 . 2 . 8 . . . 2 . 2 . 1 . 1 2 . . . 1 . 2 . 1 . . . . 1 2 . . . 1 . . . . 1 . Terminals 25 | . 2 . . . 8 . . . 8 . . . . . . . . . 1 2 . . . . . 1 . . . . . . 1 2 . . . . . . . . . . Assimilate 2 | . . . . . 1 . . . 1 . . . . . . . . . . . . . . . . . . . . . . . . . . . . . . . . . . . Botnet 5 | . . . . . 1 . . . 1 . . . . . . . . . . 2 . . . . . . . . . . . . . 1 . . . . . . . . . . Operators 6 | . . . . . 1 . . . 1 . . . . . . . . . 1 . . . . . . 1 . . . . . . 1 1 . . . . . . . . . . Skim 12 | . 2 . . . 5 . . . 5 . . . . . . . . . . . . . . . . . . . . . . . . . . . . . . . . . . . Fabricators . | . . . . . . . . . . . . . . . . . . . . . . . . . . . . . . . . . . . . . . . . . . . . . Repair Stations 3 | . . . . . . . . . . . . . 1 . 1 . . . . . . . . . . . . . . . . . . . . . . . . . . . 1 . Mechanics 3 | . . . . . . . . . . . . . 1 . 1 . . . . . . . . . . . . . . . . . . . . . . . . . . . 1 . Recycling Units 5 | . 2 . . . . . 2 . . . . . 1 . . . . . . . . . . . . . . . . . . . . . . . . . . . . . . . Reject 1 | . . . . . . . 1 . . . . . . . . . . . . . . . . . . . . . . . . . . . . . . . . . . . . . Recyclers 1 | . . . . . . . . . . . . . 1 . . . . . . . . . . . . . . . . . . . . . . . . . . . . . . . Mask 1 | . . . . . . . 1 . . . . . . . . . . . . . . . . . . . . . . . . . . . . . . . . . . . . . Tunnel 2 | . 2 . . . . . . . . . . . . . . . . . . . . . . . . . . . . . . . . . . . . . . . . . . . Scanalyzers . | . . . . . . . . . . . . . . . . . . . . . . . . . . . . . . . . . . . . . . . . . . . . . Garrison Access 6 | . . . . . . . . . . . . . . . 1 . 1 . . . . . . 1 . 1 . 1 . . . . . . . . . 1 . . . . . . Eject 6 | . . . . . . . . . . . . . . . 1 . 1 . . . . . . 1 . 1 . 1 . . . . . . . . . 1 . . . . . . Data Cores Recovered 2 | . 1 . . . . . . . . . 1 . . . . . . . . . . . . . . . . . . . . . . . . . . . . . . . . . Used . | . . . . . . . . . . . . . . . . . . . . . . . . . . . . . . . . . . . . . . . . . . . . . Hacking Detections 138 | . 6 . . 1 8 1 6 2 11 2 10 1 7 2 3 . 3 1 13 4 1 . 3 4 1 5 . 1 1 2 3 1 8 6 2 1 2 7 2 1 3 . 3 . Full Trace Events 14 | . 3 . . . 1 . 1 . 2 1 2 . . . . . . . . . . . . 1 . . . . . . . . . . . 1 . . 1 1 . . . . Feedback Events . | . . . . . . . . . . . . . . . . . . . . . . . . . . . . . . . . . . . . . . . . . . . . . Feedback Blocked . | . . . . . . . . . . . . . . . . . . . . . . . . . . . . . . . . . . . . . . . . . . . . . Robot Schematics Acquired 5 | . 1 . . . . . . . . . . . . . . . . . . . . . . . . . . . . . . . . 1 . . . 3 . . . . . . Robots Built 4 | . . . . . . . . . . . . . . . 1 . . . . . . . . 1 . 1 . 1 . . . . . . . . . . . . . . . . Authchips 3 | . . . . . . . . . . . . . . . 1 . . . . . . . . . . 1 . 1 . . . . . . . . . . . . . . . . Time 147 | . . . . . . . . . . . . . . . 40 . . . . . . . . 40 . 40 . 27 . . . . . . . . . . . . . . . . Total Robot Build Rating 4 | . . . . . . . . . . . . . . . 1 . . . . . . . . 1 . 1 . 1 . . . . . . . . . . . . . . . . Part Schematics Acquired 27 | . . . . . 1 . 1 . . . 2 . . . . . . . . . . . . . . . . . . . . . . 8 . . . 15 . . . . . . Parts Built 2 | . . . . . . . . . 2 . . . . . . . . . . . . . . . . . . . . . . . . . . . . . . . . . . . Authchips . | . . . . . . . . . . . . . . . . . . . . . . . . . . . . . . . . . . . . . . . . . . . . . Time 53 | . . . . . . . . . 53 . . . . . . . . . . . . . . . . . . . . . . . . . . . . . . . . . . . Total Part Build Rating 12 | . . . . . . . . . 12 . . . . . . . . . . . . . . . . . . . . . . . . . . . . . . . . . . . Parts Repaired 5 | . . . . . 1 . . . 1 . 1 . . . . . . . 2 . . . . . . . . . . . . . . . . . . . . . . . . . Time 274 | . . . . . 38 . . . 22 . 44 . . . . . . . 170 . . . . . . . . . . . . . . . . . . . . . . . . . Parts Recycled . | . . . . . . . . . . . . . . . . . . . . . . . . . . . . . . . . . . . . . . . . . . . . . Recycled Matter . | . . . . . . . . . . . . . . . . . . . . . . . . . . . . . . . . . . . . . . . . . . . . . Retrieved Matter . | . . . . . . . . . . . . . . . . . . . . . . . . . . . . . . . . . . . . . . . . . . . . . Retrieved Components 9 | . . . . . . . 9 . . . . . . . . . . . . . . . . . . . . . . . . . . . . . . . . . . . . . Parts Scanalyzed 4 | . . . . . 1 . 2 . . . 1 . . . . . . . . . . . . . . . . . . . . . . . . . . . . . . . . . Part Schematics Acquired 4 | . . . . . 1 . 1 . . . 2 . . . . . . . . . . . . . . . . . . . . . . . . . . . . . . . . . Parts Damaged 1 | . . . . . . . 1 . . . . . . . . . . . . . . . . . . . . . . . . . . . . . . . . . . . . . Bothacking | -11 -10 -10 -10 -9 -8 -8 -8 -8 -7 -7 -7 -7 -6 -6 -5 -5 -5 -5 -5 -5 -5 -5 -5 -4 -4 -4 -4 -4 -4 -3 -3 -3 -3 -3 -3 -2 -2 -2 -2 -1 -1 -1 -1 -1 ------------ Run | Yrd Mat Min Exi Min Mat Gar Mat Gar Fac Gar Fac Gar Fac Gar Fac Was Fac Gar Fac Ext Cet Arc Hub Fac Gar Fac Gar Fac Gar Res Gar Res Qua Sec Gar Res Gar Tes Gar Acc Gar Acc Com Ac0 Used RIF Installer 16 | . . . . . . 1 . 2 . 1 . 1 . 1 . . . 2 . . . . . . 1 . 1 . 1 . 1 . . . 1 . 1 . 1 . 1 . . . Hotswap 1 | . . . . . . . . . . . . . . . . . . . . . . . . . . . . . . . . . . . . . . . 1 . . . . . Threat Obfuscator 3 | . . . . . . . . 1 . . . . . . . . . . . . . . . . 1 . . . . . . . . . . . 1 . . . . . . . Zone Cloak 2 | . . . . . . . . 1 . . . . . . . . . 1 . . . . . . . . . . . . . . . . . . . . . . . . . . Robot Detection 1 | . . . . . . . . . . . . . . . . . . . . . . . . . . . 1 . . . . . . . . . . . . . . . . . Watcher Feeds 1 | . . . . . . . . . . . . . . . . . . . . . . . . . . . . . 1 . . . . . . . . . . . . . . . Patrol Navigation 1 | . . . . . . . . . . . . . . . . . . . . . . . . . . . . . . . . . . . . . . . . . 1 . . . Alert ID Control 1 | . . . . . . . . . . . . . . 1 . . . . . . . . . . . . . . . . . . . . . . . . . . . . . . Structural Interface 1 | . . . . . . . . . . 1 . . . . . . . . . . . . . . . . . . . . . . . . . . . . . . . . . . Autooverride 2 | . . . . . . . . . . . . 1 . . . . . . . . . . . . . . . . . . 1 . . . . . . . . . . . . . Autoassimilate 1 | . . . . . . . . . . . . . . . . . . . . . . . . . . . . . . . . . . . 1 . . . . . . . . . Crosswire 1 | . . . . . . . . . . . . . . . . . . 1 . . . . . . . . . . . . . . . . . . . . . . . . . . Robots Hacked 463 | . . . . . . . 1 2 5 . 3 4 9 15 10 5 4 14 30 9 2 1 5 2 10 14 18 7 28 4 16 10 28 11 26 18 26 32 27 3 32 16 16 . Non-combat 59 | . . . . . . . 1 . 2 . 3 . 3 . 7 . 2 . 9 1 . 1 . . . 1 . 4 . . . 3 5 1 . 2 . 2 . . . 10 2 . Combat 404 | . . . . . . . . 2 3 . . 4 6 15 3 5 2 14 21 8 2 . 5 2 10 13 18 3 28 4 16 7 23 10 26 16 26 30 27 3 32 6 14 . Autooverrided 95 | . . . . . . . . . . . . 1 . 2 . . . 6 6 2 2 . 1 . 3 5 2 . 9 1 3 1 10 . 6 6 4 7 7 1 6 . 4 . Autoassimilated 16 | . . . . . . . . . . . . . . . . . . . . . . . . . . . . . . . . . . . 3 1 4 1 3 . 4 . . . Robot Hacks Applied 403 | . . . . . . . 3 2 6 . 5 3 11 14 15 5 6 12 29 8 . 1 4 2 8 11 16 7 22 4 13 10 21 11 20 15 21 27 18 2 22 17 12 . parse_system 9 | . . . . . . . . . . . . . . . 1 1 1 1 . . . . . . . . . . . . . . . . . . 4 1 . . . . . . find_chute 1 | . . . . . . . . . . . . . . . 1 . . . . . . . . . . . . . . . . . . . . . . . . . . . . . ignore_repairs 2 | . . . . . . . . . . . . . . . 1 . . . . . . . . . . . . 1 . . . . . . . . . . . . . . . . map_walls 3 | . . . . . . . . . . . . . . . . . . . . . . . . . . . . . . . . . . . . . . . . . . 3 . . find_fabricator 4 | . . . . . . . . . . . . . . . 1 . 1 . 2 . . . . . . . . . . . . . . . . . . . . . . . . . drop_inventory 19 | . . . . . . . . . . . 1 . . . 2 . 2 . 4 . . . . . . . . 1 . . . 2 2 1 . . . 1 . . . 3 . . purge_threat 17 | . . . . . . . 1 . 1 . 2 . 2 . 3 . . . 1 . . . . . . 2 . . . . . . . . . 4 . . . . . 1 . . reprogram_traps 1 | . . . . . . . 1 . . . . . . . . . . . . . . . . . . . . . . . . . . . . . . . . . . . . . block_reporting 2 | . . . . . . . . . . . . . . . . . . . . 1 . . . . . . . . . . . . 1 . . . . . . . . . . . map_route 7 | . . . . . . . . . . . . . . . . . . . . . . . . . . . . 1 . . . . 1 . . . . . . . . 4 1 . disable_scanner 15 | . . . . . . . . . . . . . . . . . . . . . . . . . . . . . . . . . 3 2 . . . 10 . . . . . . locate_prototypes 4 | . . . . . . . . . . . . . . . . . . . . . . . . . . . . . . . . . 2 2 . . . . . . . . . . ignore_targets 4 | . . . . . . . . . . . . . . . . 4 . . . . . . . . . . . . . . . . . . . . . . . . . . . . find_garrison 4 | . . . . . . . . . . . . . . . . . 1 . . . . . 1 . . . . . . 1 . . . . . 1 . . . . . . . . link_fov 3 | . . . . . . . . . . . . . . . . . . 1 . . . . . . . . 1 . . . . . . . 1 . . . . . . . . . focus_fire 1 | . . . . . . . . . . . . . . . . . . . . . . . . . . . . . . . . . . . 1 . . . . . . . . . scatter_targeting 1 | . . . . . . . . . . . . . . . . . . . . 1 . . . . . . . . . . . . . . . . . . . . . . . . disrupt_area 3 | . . . . . . . . . . . . . . . . . . . . 3 . . . . . . . . . . . . . . . . . . . . . . . . spike_heat 2 | . . . . . . . . . . . . . . . . . . . 1 . . . . . 1 . . . . . . . . . . . . . . . . . . . overload_power 1 | . . . . . . . . . . . . . . . . . . . 1 . . . . . . . . . . . . . . . . . . . . . . . . . amplify_resonance 42 | . . . . . . . . 1 . . . 2 2 2 1 . . . 1 2 . . . 1 2 1 3 . 3 . 6 . 1 1 2 1 2 . 4 1 . 1 2 . disable_weapons 5 | . . . . . . . . . . . . . . 2 . . . . . . . . . . . . . . 2 . . . . . 1 . . . . . . . . . overwrite_iff 88 | . . . . . . . . . 3 . . 1 4 4 2 . 1 5 2 1 . . 1 1 4 5 7 2 8 . 2 3 2 1 8 1 7 1 3 1 8 . . . streamctrl_high 3 | . . . . . . . . 1 . . . . . . . . . . . . . . . . . 1 . . . . . . . . . . . . . . . . 1 . formatsys_low 23 | . . . . . . . 1 . 2 . 2 . 1 . 1 . . . 5 . . 1 . . . 1 . 1 . . . 2 1 . . 2 . 2 . . . . 1 . formatsys_high 139 | . . . . . . . . . . . . . 2 6 2 . . 5 12 . . . 2 . 1 1 5 1 9 3 5 3 8 4 7 6 8 12 11 . 14 5 7 . Relay Couplers Released 285 | . . . . . . 9 . 7 . 26 . 16 . 20 4 . 3 36 3 . . . 2 4 15 3 17 4 21 . 17 1 1 . 20 3 13 3 15 5 17 . . . Ejected 21 | . . . . . . . . . . . . . . . 4 . 3 . . . . . . 4 . 3 . 4 . . . . . . . . . 3 . . . . . . Machine Destruction 257 | . . . . . . 9 . 7 . 26 . 16 . 20 . . . 36 . . . . 2 . 15 . 17 . 21 . 17 1 1 . 20 3 13 . 15 1 17 . . . Programmers 7 | . . . . . . . . . . . . . . . . . . . 3 . . . . . . . . . . . . . . . . . . . . 4 . . . . Attached 142 | . . . . . . . 1 1 2 1 2 2 3 7 2 1 1 10 6 1 . . 2 1 3 5 11 1 11 2 6 2 5 2 11 3 10 6 8 . 6 . 7 . Crosswired 68 | . . . . . . . . . . . . . . . . . . 7 . . . . . . 3 1 8 . 9 . 3 . . . 10 2 6 2 5 . 12 . . . Fabnet Peak Effective % . | . . . . . . . . . . . . . . . . . . . . . . . . . . . . . . . . . . . . . . . . . . . . . Robots Rewired 68 | . . . . . . . . . . 13 . 5 . 4 . . . 6 . 15 . . . . . . . . . . . . . . 4 . 4 3 14 . . . . . Allies Hacked 37 | . . . . . . . . 1 . . 1 2 1 . 1 . . 4 3 . . . . . . 1 . . 1 . . . 2 1 3 5 . 8 . . 2 . 1 . Hacks Repelled . | . . . . . . . . . . . . . . . . . . . . . . . . . . . . . . . . . . . . . . . . . . . . . Allies | -11 -10 -10 -10 -9 -8 -8 -8 -8 -7 -7 -7 -7 -6 -6 -5 -5 -5 -5 -5 -5 -5 -5 -5 -4 -4 -4 -4 -4 -4 -3 -3 -3 -3 -3 -3 -2 -2 -2 -2 -1 -1 -1 -1 -1 -------- Run | Yrd Mat Min Exi Min Mat Gar Mat Gar Fac Gar Fac Gar Fac Gar Fac Was Fac Gar Fac Ext Cet Arc Hub Fac Gar Fac Gar Fac Gar Res Gar Res Qua Sec Gar Res Gar Tes Gar Acc Gar Acc Com Ac0 Total Allies 447 | . . 1 . . . . 1 1 5 13 2 9 10 17 6 . 1 22 24 19 7 1 5 2 8 14 14 5 25 4 10 9 18 6 27 16 29 25 39 2 32 5 13 . Largest Group 23 | . . 1 1 1 1 . 1 2 3 14 14 5 4 11 12 2 1 8 6 9 10 5 8 8 6 2 4 2 6 9 5 5 5 2 6 10 18 23 21 19 10 11 10 . Highest-Rated Group 1436 | . . 31 31 31 31 . 10 26 42 351 351 160 160 695 704 145 75 233 259 374 749 429 613 600 467 75 162 72 242 479 213 227 265 219 462 589 1099 1436 1327 1191 610 674 847 . Highest-Rated Ally 219 | . . 31 31 31 31 . 10 16 26 39 39 80 113 119 119 119 75 95 85 159 159 96 137 137 137 58 56 58 58 64 56 148 64 219 89 69 99 92 95 95 69 64 219 . Total Orders 135 | . . . . . . 1 5 2 3 . 1 . 4 8 1 . 1 . 6 1 . 2 3 1 2 5 . 2 . 2 2 6 3 2 2 1 . 7 2 1 2 . 25 32 STAY 39 | . . . . . . . 2 1 2 . . . . 3 . . . . 1 . . 1 1 . 1 2 . . . 1 1 3 1 1 1 . . 2 1 1 1 . 12 . ROAM 4 | . . . . . . . . . . . . . . 1 . . . . . . . . . . . . . . . . . . . . . . . . 1 . . . 2 . FOLLOW 30 | . . . . . . . 2 1 1 . . . 1 4 . . . . . . . 1 2 . . 1 . . . 1 1 . . 1 1 . . 3 . . 1 . 9 . AID 24 | . . . . . . . . . . . 1 . 1 . 1 . . . 5 1 . . . 1 1 2 . 2 . . . 3 2 . . 1 . 2 . . . . 1 . EXPLORE 23 | . . . . . . 1 1 . . . . . 1 . . . 1 . . . . . . . . . . . . . . . . . . . . . . . . . . 19 RETURN 15 | . . . . . . . . . . . . . 1 . . . . . . . . . . . . . . . . . . . . . . . . . . . . . 1 13 Ally Attacks 2966 | . . 13 . . 5 . . 7 8 . 119 35 61 73 144 17 2 98 186 128 72 26 58 119 52 21 51 10 91 18 21 69 70 46 168 227 105 376 137 24 99 70 140 . Total Damage 99443 | . . 107 . . 63 . . 68 123 . 3803 1077 1309 2761 6638 1428 39 2035 5281 2858 2286 920 1879 4521 2155 693 1473 308 2343 789 395 2222 1869 2242 4427 7295 3142 11987 5445 991 2956 3154 8361 . Kills 573 | . . 3 . . . . . . 1 . 35 10 9 14 55 4 . 22 43 18 14 4 16 28 7 5 12 1 20 4 6 8 12 11 26 35 20 57 25 7 11 11 19 . Allies Corrupted 34 | . . . . . . . . . . . 2 . 1 . . . . . 2 1 . . . . . . 1 . . 1 . 1 2 . 6 4 . 6 1 . 2 2 2 . Allies Melted 7 | . . . . . . . . . . . . . 1 . 1 . . . . . . . . . . 2 . . . . . 1 . . . 1 . 1 . . . . . . Field Lobotomies 5 | . . . . . . . . . . . . . . . . . . 1 1 . . . 1 . . . . . . . . 1 . 1 . . . . . . . . . . Intel | -11 -10 -10 -10 -9 -8 -8 -8 -8 -7 -7 -7 -7 -6 -6 -5 -5 -5 -5 -5 -5 -5 -5 -5 -4 -4 -4 -4 -4 -4 -3 -3 -3 -3 -3 -3 -2 -2 -2 -2 -1 -1 -1 -1 -1 ------- Run | Yrd Mat Min Exi Min Mat Gar Mat Gar Fac Gar Fac Gar Fac Gar Fac Was Fac Gar Fac Ext Cet Arc Hub Fac Gar Fac Gar Fac Gar Res Gar Res Qua Sec Gar Res Gar Tes Gar Acc Gar Acc Com Ac0 Robot Analysis Total . | . . . . . . . . . . . . . . . . . . . . . . . . . . . . . . . . . . . . . . . . . . . . . Derelict Logs Recovered 3 | . . 2 . 1 . . . . . . . . . . . . . . . . . . . . . . . . . . . . . . . . . . . . . . . . Drone Launches 25 | . . . . . . 1 1 . . . . . 1 . . . 1 . . . . . . . . . . . . . . . . . . . . . . . . . 1 20 Drone Recoveries 18 | . . . . . . 1 1 . . . . . 1 . . . . . . . . . . . . . . . . . . . . . . . . . . . . . 1 14 Exploration | -11 -10 -10 -10 -9 -8 -8 -8 -8 -7 -7 -7 -7 -6 -6 -5 -5 -5 -5 -5 -5 -5 -5 -5 -4 -4 -4 -4 -4 -4 -3 -3 -3 -3 -3 -3 -2 -2 -2 -2 -1 -1 -1 -1 -1 ------------- Run | Yrd Mat Min Exi Min Mat Gar Mat Gar Fac Gar Fac Gar Fac Gar Fac Was Fac Gar Fac Ext Cet Arc Hub Fac Gar Fac Gar Fac Gar Res Gar Res Qua Sec Gar Res Gar Tes Gar Acc Gar Acc Com Ac0 Turns Passed 81511 | 70 1599 709 635 403 2589 1103 2469 1336 2824 984 2307 1157 1726 1862 1500 413 1912 1613 4809 2450 814 990 679 629 1660 2327 2300 685 1427 685 1243 1014 2913 1780 1696 836 1239 2341 1492 1252 1498 1212 15419 910 Spaces Moved 37025 | 45 804 386 305 167 1013 443 1043 607 1508 512 1183 568 807 731 550 97 790 781 1860 904 257 189 231 246 601 853 890 328 611 265 647 510 1465 881 828 401 640 1189 796 496 696 576 8046 279 Core 56 | 20 . . . . . . . . . . . . . . . . . . . . . . . . . . . . . . . . . . . . . . . . . . 20 16 Treads 31587 | 25 804 386 305 167 1013 443 1043 607 580 . 10 . 1 566 550 97 790 781 1800 904 257 189 231 246 601 853 890 328 237 265 647 510 1465 881 828 401 640 1189 796 496 696 576 7230 263 Legs 796 | . . . . . . . . . . . . . . . . . . . . . . . . . . . . . . . . . . . . . . . . . . . 796 . Wheels 4586 | . . . . . . . . . 928 512 1173 568 806 165 . . . . 60 . . . . . . . . . 374 . . . . . . . . . . . . . . . Hover . | . . . . . . . . . . . . . . . . . . . . . . . . . . . . . . . . . . . . . . . . . . . . . Flight . | . . . . . . . . . . . . . . . . . . . . . . . . . . . . . . . . . . . . . . . . . . . . . Fastest Speed 50 | 50 160 160 160 240 150 150 150 155 145 145 145 145 160 160 165 245 160 160 160 245 245 240 160 240 160 160 160 160 160 160 166 163 160 160 160 160 160 160 160 160 160 160 50 50 Average Speed 180 | 135 160 160 206 240 200 203 187 177 160 155 160 157 174 175 236 245 198 169 234 245 245 242 195 240 228 233 208 160 184 165 166 163 162 160 160 160 160 162 160 160 160 160 170 140 Slowest Speed 1030 | 250 160 160 240 240 240 230 238 238 238 160 320 160 320 245 245 245 245 240 245 245 245 245 240 240 240 240 240 160 320 255 166 166 163 160 160 160 160 240 160 160 160 160 1030 146 Overloaded Moves . | . . . . . . . . . . . . . . . . . . . . . . . . . . . . . . . . . . . . . . . . . . . . . Propulsion Burnouts . | . . . . . . . . . . . . . . . . . . . . . . . . . . . . . . . . . . . . . . . . . . . . . Robots Hopped . | . . . . . . . . . . . . . . . . . . . . . . . . . . . . . . . . . . . . . . . . . . . . . Cave-ins Triggered . | . . . . . . . . . . . . . . . . . . . . . . . . . . . . . . . . . . . . . . . . . . . . . Teleports 3 | . . . . . . . . . . . . . . . . . . . . . . . . . . . . . . . . . . . 1 . . . . . . . 1 1 Exploration Rate (%) 61 | 4 99 88 69 60 74 71 59 78 37 87 32 90 33 96 20 76 31 93 54 88 59 78 36 9 89 24 92 11 93 12 98 22 93 50 95 19 85 95 98 19 92 26 90 40 Regions Visited 44 Branch Regions 12 Pre-discovered Areas 9 | . 2 1 . . 2 . . . 4 . . . . . . . . . . . . . . . . . . . . . . . . . . . . . . . . . . . Known Exits Taken 17 | . . . . . 1 . 1 . 1 . 1 . 1 . . . 1 . 1 1 . . . 1 . 1 . 1 . 1 . 1 . 1 . 1 . 1 . 1 . . . . Unknown Exits Taken 11 | 1 1 1 1 1 . . . . . . . . . . . . . . . . 1 1 1 . . . . . . . . . 1 . . . . . . . . 1 1 . Scrap Searched 2 | . . . . 2 . . . . . . . . . . . . . . . . . . . . . . . . . . . . . . . . . . . . . . . . Spaces Dug 251 | . . . . . . . 1 22 14 . 7 1 2 30 5 . 17 . 10 . . . . . . 2 7 2 7 2 1 7 17 7 . 5 . 3 . 6 . 30 41 5 Terrain Destroyed 1926 | . . 38 . . 35 17 9 22 14 1 9 3 85 30 7 . 123 43 22 4 3 12 . . 12 28 62 4 19 3 5 16 81 66 8 21 5 12 3 41 6 65 138 854 Melee . | . . . . . . . . . . . . . . . . . . . . . . . . . . . . . . . . . . . . . . . . . . . . . Projectile 422 | . . . . . . . 9 . 14 1 9 3 5 3 7 . 25 1 22 4 3 12 . . 12 21 8 4 19 3 5 16 34 18 8 21 5 12 3 20 6 31 39 19 AOE 1504 | . . 38 . . 35 17 . 22 . . . . 80 27 . . 98 42 . . . . . . . 7 54 . . . . . 47 48 . . . . . 21 . 34 99 835 Terrain Rammed 2 | . . . . . . . . . . . . . . . . . . . . . . . . . . . . . . . . . . . . . . . . . . . 2 . Walls Destroyed . | . . . . . . . . . . . . . . . . . . . . . . . . . . . . . . . . . . . . . . . . . . . . . Machines Disabled . | . . . . . . . . . . . . . . . . . . . . . . . . . . . . . . . . . . . . . . . . . . . . . Actions | -11 -10 -10 -10 -9 -8 -8 -8 -8 -7 -7 -7 -7 -6 -6 -5 -5 -5 -5 -5 -5 -5 -5 -5 -4 -4 -4 -4 -4 -4 -3 -3 -3 -3 -3 -3 -2 -2 -2 -2 -1 -1 -1 -1 -1 --------- Run | Yrd Mat Min Exi Min Mat Gar Mat Gar Fac Gar Fac Gar Fac Gar Fac Was Fac Gar Fac Ext Cet Arc Hub Fac Gar Fac Gar Fac Gar Res Gar Res Qua Sec Gar Res Gar Tes Gar Acc Gar Acc Com Ac0 Total 49634 | 51 1012 433 313 170 1378 568 1384 773 1751 683 1537 742 1004 1094 740 273 1108 1008 2259 1128 443 723 449 279 800 1178 1311 481 898 508 804 691 1979 1230 1204 589 853 1589 1011 949 1079 867 9649 661 Wait 6361 | . 134 7 . 2 174 52 206 96 97 36 284 36 65 155 104 149 167 79 176 47 152 464 187 19 60 183 119 94 69 215 54 66 265 152 162 81 48 215 59 350 112 181 806 182 Move 36990 | 44 803 385 304 166 1013 442 1043 606 1508 511 1182 567 807 729 550 96 790 780 1859 903 256 188 230 245 600 852 889 328 610 265 646 509 1464 881 827 401 639 1188 795 496 695 575 8045 278 Hop . | . . . . . . . . . . . . . . . . . . . . . . . . . . . . . . . . . . . . . . . . . . . . . Pick Up 425 | 1 9 3 3 . 15 7 12 5 16 9 3 11 3 12 6 . 8 17 12 4 4 6 3 1 12 7 28 1 17 1 8 5 8 10 23 3 11 4 9 1 16 2 78 11 Fast Attach 251 | 6 2 2 . . 4 4 4 . 1 2 1 1 12 10 2 2 5 8 5 . 1 2 . . 3 5 10 2 5 4 7 9 13 11 8 . 3 9 3 1 2 1 79 2 Attach 238 | . 1 1 . 2 12 2 3 1 4 3 1 2 6 9 4 1 11 7 10 2 1 3 5 2 5 5 14 2 9 3 4 3 8 11 6 4 4 6 4 5 2 5 36 9 Detach 167 | . 1 2 1 . 5 . 4 . 2 3 . . 6 4 2 3 4 2 4 . 1 2 1 . 2 1 1 2 1 3 2 7 9 6 4 . . 5 2 2 1 5 66 1 Swap 579 | . 4 6 1 . 12 12 13 21 25 7 17 17 24 16 8 2 16 14 21 9 4 4 6 5 8 12 28 7 22 3 14 7 26 24 18 9 14 17 11 6 17 2 54 16 Drop 414 | . 4 2 3 . 13 5 16 3 16 8 5 6 9 14 3 3 5 10 8 3 6 5 . 1 4 4 19 2 13 3 13 11 17 7 18 . 7 11 4 . 10 1 111 11 Fire 3656 | . 52 23 . . 123 44 70 41 78 19 34 48 70 127 58 17 100 80 156 31 18 49 11 5 92 108 195 39 136 9 52 71 153 128 131 88 70 112 111 86 220 94 356 151 Melee 4 | . . . . . . . 3 . . . . . . . . . . . . . . . . . . . . . . . . . 1 . . . . . . . . . . . Ram 7 | . . . . . . . . . 2 . 1 . 2 . . . . . . . . . . . . . . . . . . . . . . . . . . . . . 2 . Kick . | . . . . . . . . . . . . . . . . . . . . . . . . . . . . . . . . . . . . . . . . . . . . . Crush 98 | . 2 2 . . 7 . 10 . 1 . . 1 . 6 2 . 2 . 6 5 . . 5 1 4 1 2 4 . 1 . 3 7 . 1 3 . 11 . 2 1 1 7 . Escape Stasis 68 | . . . . . . . . . . . 8 31 . . . . . . . 6 . . . . 8 . 4 . 11 . . . . . . . . . . . . . . . Rewire 370 | . . . 1 . . . . . 1 85 1 22 . 12 1 . . 11 2 118 . . 1 . 2 . 2 . 5 1 1 . 5 . 6 . 57 11 13 . 3 . 9 . Trap 6 | . . . . . . . . . . . . . . . . . . . . . . . . . . . . . . . 3 . 3 . . . . . . . . . . . Miscellaneous . | . . . . . . . . . . . . . . . . . . . . . . . . . . . . . . . . . . . . . . . . . . . . . Route ------- -11/Scrapyard -10/Materials (discovered 5 exits: [*Mat x3] / [*Min] / [*Sub]) -10/Mines (discovered 2 exits: [*Mat] / *Exi) -10/Exiles -9/Mines -8/Materials (discovered 4 exits: *Fac x3 / Gar) -8/Garrison (discovered 3 exits: *Mat x3) -8/Materials (discovered 4 exits: Fac x3 / Gar) -8/Garrison (discovered 3 exits: *Fac x3) -7/Factory (discovered 6 exits: Fac x3 / *Low x2 / Gar) -7/Garrison (discovered 3 exits: *Fac x3) -7/Factory (discovered 4 exits: *Fac / *Low x2 / Gar) -7/Garrison (discovered 3 exits: *Fac x3) -6/Factory (discovered 2 exits: *Fac / Gar) -6/Garrison (discovered 3 exits: *Fac x3) -5/Factory (discovered 2 exits: *Upp / *Ext) -5/Waste -5/Factory (discovered 2 exits: *Fac / Gar) -5/Garrison (discovered 3 exits: *Fac x3) -5/Factory (discovered 6 exits: *Fac x2 / Upp x2 / *Ext x2) -5/Extension (discovered 2 exits: *Fac / *Cet) -5/Cetus (discovered 2 exits: *Fac / [*Arc]) -5/Archives (discovered 2 exits: *Fac / *Hub) -5/Hub_04(d) -4/Factory (discovered 2 exits: *Res / Gar) -4/Garrison (discovered 3 exits: *Fac x3) -4/Factory (discovered 2 exits: [*Upp] / Gar) -4/Garrison (discovered 3 exits: *Res x2 / *Fac) -4/Factory -4/Garrison (discovered 3 exits: *Res x3) -3/Research -3/Garrison (discovered 3 exits: *Res x3) -3/Research (discovered 2 exits: *Qua x2) -3/Quarantine (discovered 2 exits: *Res / *Sec) -3/Section 7 -3/Garrison (discovered 2 exits: *Res x2) -2/Research -2/Garrison (discovered 3 exits: *Tes x3) -2/Testing (discovered 2 exits: *Acc / Gar) -2/Garrison (discovered 3 exits: *Acc x3) -1/Access -1/Garrison (discovered 3 exits: [*Acc x3]) -1/Access -1/Command (discovered 3 exits: [*Sur x2] / [*Ac0]) -1/Access_0 Near Former Tau Ceti IV History --------- Turn | Location | Event 23 | -11/Scrapyard | Discovered new exit (range 14) 71 | -11/Scrapyard | Entered Materials 229 | -10/Materials | Discovered new exit (range 16) 302 | -10/Materials | Build established: Mutant 720 | -10/Materials | Discovered new exit (range 10) 971 | -10/Materials | Derelicts attacked the area 1113 | -10/Materials | Discovered new exit (range 12) 1336 | -10/Materials | Discovered new exit (range 6) 1524 | -10/Materials | Discovered new exit (range 16) 1670 | -10/Materials | Entered Mines 1677 | -10/Mines | Received a Rocket Launcher from a helpful Derelict 1898 | -10/Mines | Learned Materials terminal intel 1923 | -10/Mines | Met a Derelict testing a Signal Generator 2060 | -10/Mines | Found a damaged Exp. Sensor Array with a note attached 2063 | -10/Mines | Found Prototype Device 2109 | -10/Mines | Joined a pair of Derelicts in attacking an 0b10 outpost 2186 | -10/Mines | Learned location of Storage (-9) 2203 | -10/Mines | Core integrity fell below 50% 2247 | -10/Mines | Deemed a non-threat by the Exiles lab entrance 2303 | -10/Mines | Discovered new exit (range 6) 2371 | -10/Mines | Discovered new exit (range 5) 2379 | -10/Mines | Entered Exiles 2379 | -10/Exiles | Accompanied by 1 ally 2420 | -10/Exiles | Met 8R-AWN 2446 | -10/Exiles | Met EX-HEX 2491 | -10/Exiles | Met EX-BIN 2537 | -10/Exiles | Met EX-DEC 2712 | -10/Exiles | Aligned with FarCom system 2715 | -10/Exiles | Given EX-Vault access code 2770 | -10/Exiles | Opened EX-Vault 2782 | -10/Exiles | Found Supersonic Drone Bay 2788 | -10/Exiles | Found Field Lobotomy Kit 2837 | -10/Exiles | Warned to stay clear of 0b10 Research branches 2869 | -10/Exiles | Exiles lab attacked by MAIN.C 2993 | -10/Exiles | Discovered new exit (range 11) 3014 | -10/Exiles | Stole two prototypes: Supersonic Drone Bay, Field Lobotomy Kit 3014 | -10/Exiles | Entered Mines 3014 | -9/Mines | Accompanied by 1 ally 3132 | -9/Mines | Learned 2 Materials zone layouts 3385 | -9/Mines | Discovered new exit (range 11) 3417 | -9/Mines | Entered Materials 3417 | -8/Materials | Accompanied by 1 ally 3417 | -8/Materials | Evolved 4 slots: Propulsion x1, Utility x3 3418 | -8/Materials | Identified exit to Factory 3419 | -8/Materials | Loaded intel: 12 terminal locations 3704 | -8/Materials | Build established: Scavenger-Mutant 3974 | -8/Materials | Learned location of 1 exit from Recycling 4107 | -8/Materials | Learned Storage emergency access door positions 4132 | -8/Materials | Learned Factory stockpile data 4168 | -8/Materials | Learned Factory security intel 4202 | -8/Materials | Learned 2 Lower Caves zone layouts 4301 | -8/Materials | Learned location of Lower Caves (-7) 4733 | -8/Materials | Build established: Mutant 5373 | -8/Materials | Repaired Hvy. Armor Plating 5445 | -8/Materials | Garrison activated, responded to threat 6006 | -8/Materials | Identified exit to Garrison 6006 | -8/Materials | Entered Garrison 6012 | -8/Garrison | Discovered new exit (range 72) 6014 | -8/Garrison | Triggered checkpoint 6015 | -8/Garrison | Discovered new exit (range 64) 6148 | -8/Garrison | Triggered checkpoint 6159 | -8/Garrison | Triggered checkpoint 6163 | -8/Garrison | Triggered checkpoint 6177 | -8/Garrison | Learned Materials security intel 6177 | -8/Garrison | Discovered new exit (range 32) 6177 | -8/Garrison | Discovered new exit (range 55) 6177 | -8/Garrison | Discovered new exit (range 53) 6304 | -8/Garrison | Garrison Relay disabled 6999 | -8/Garrison | Installed Relay Interface Framework 7050 | -8/Garrison | Garrison Relay disabled 7109 | -8/Garrison | Entered Materials 7195 | -8/Materials | Identified Exp. Sensor Array 7373 | -8/Materials | Build established: Bothacker-Mutant 9324 | -8/Materials | Core integrity fell below 50% 9578 | -8/Materials | Identified exit to Garrison 9578 | -8/Materials | Entered Garrison 9578 | -8/Garrison | Accompanied by 1 ally 9668 | -8/Garrison | Triggered checkpoint 9757 | -8/Garrison | Garrison Relay disabled 9839 | -8/Garrison | Expanded RIF knowledge: Zone Cloak 10264 | -8/Garrison | Triggered checkpoint 10323 | -8/Garrison | Expanded RIF knowledge: Threat Obfuscation 10405 | -8/Garrison | Discovered exit to Factory (range 9) 10428 | -8/Garrison | Triggered checkpoint 10461 | -8/Garrison | Garrison Relay disabled 10545 | -8/Garrison | Triggered checkpoint 10630 | -8/Garrison | Discovered exit to Factory (range 10) 10812 | -8/Garrison | Triggered checkpoint 10880 | -8/Garrison | Discovered exit to Factory (range 12) 10914 | -8/Garrison | Entered Factory 10914 | -7/Factory | Evolved 2 slots: Propulsion x1, Utility x1 10915 | -7/Factory | Identified exit to Lower Caves 10916 | -7/Factory | FarCom data flow suspended 11869 | -7/Factory | Repaired Gatling Laser 12192 | -7/Factory | Fabricated Hvy. Phase Cannon? 12442 | -7/Factory | P-60 Hacker assimilated allied Technician 4a 12443 | -7/Factory | Learned 2 Extension zone layouts 12472 | -7/Factory | Learned location of 2 exits from Lower Caves 12491 | -7/Factory | Learned location of Lower Caves (-6) 12500 | -7/Factory | Learned location of Proximity Caves (-3) 12501 | -7/Factory | Learned location of 1 exit from Extension 12502 | -7/Factory | Learned location of 1 exit from Lower Caves 12503 | -7/Factory | Identified exit to Factory 12504 | -7/Factory | Learned 4 Lower Caves zone layouts 12534 | -7/Factory | Learned location of Cetus (-5) 13571 | -7/Factory | Garrison activated, responded to threat 13735 | -7/Factory | Identified exit to Garrison 13738 | -7/Factory | Entered Garrison 13738 | -7/Garrison | Discovered recently destroyed garrison 13738 | -7/Garrison | Accompanied by 1 ally 13879 | -7/Garrison | Discovered new exit (range 8) 13987 | -7/Garrison | Garrison Relay disabled 14059 | -7/Garrison | Garrison Relay disabled 14061 | -7/Garrison | Garrison Relay disabled 14063 | -7/Garrison | Garrison Relay disabled 14065 | -7/Garrison | Garrison Relay disabled 14220 | -7/Garrison | Discovered new exit (range 12) 14541 | -7/Garrison | Discovered new exit (range 12) 14554 | -7/Garrison | Expanded RIF knowledge: Structural Interface 14626 | -7/Garrison | Learned Factory security intel 14635 | -7/Garrison | Garrison Relay disabled 14722 | -7/Garrison | Entered Factory 14722 | -7/Factory | Accompanied by 14 allies 14755 | -7/Factory | Build established: Commander-Mutant 15176 | -7/Factory | Build established: Botlord-Mutant 15800 | -7/Factory | Discovered exit to Factory (range 9) 16264 | -7/Factory | Discovered exit to Lower Caves (range 16) 16364 | -7/Factory | Build established: Bothacker-Mutant 16452 | -7/Factory | Identified exit to Garrison 16653 | -7/Factory | Repaired Arm. Huge Wheel 17029 | -7/Factory | Entered Garrison 17029 | -7/Garrison | Accompanied by 4 allies 17057 | -7/Garrison | Triggered checkpoint 17083 | -7/Garrison | Garrison Relay disabled 17115 | -7/Garrison | Learned Factory security intel 17215 | -7/Garrison | Lost 3 allies 17243 | -7/Garrison | Triggered checkpoint 17317 | -7/Garrison | Discovered exit to Factory (range 10) 17389 | -7/Garrison | Triggered checkpoint 17394 | -7/Garrison | Garrison Relay disabled 17503 | -7/Garrison | Triggered checkpoint 17543 | -7/Garrison | Expanded RIF knowledge: Autooverride 17573 | -7/Garrison | Garrison Relay disabled 17687 | -7/Garrison | Build established: Botlord-Mutant 17711 | -7/Garrison | Triggered checkpoint 17832 | -7/Garrison | Triggered checkpoint 17868 | -7/Garrison | Garrison Relay disabled 17934 | -7/Garrison | Lost 4 allies 18012 | -7/Garrison | Discovered exit to Factory (range 10) 18027 | -7/Garrison | Found embedded Infiltrators 18091 | -7/Garrison | Triggered checkpoint 18142 | -7/Garrison | Discovered exit to Factory (range 10) 18159 | -7/Garrison | Triggered checkpoint 18186 | -7/Garrison | Entered Factory 18186 | -6/Factory | Accompanied by 2 allies 18186 | -6/Factory | Evolved 2 slots: Power x1, Utility x1 18236 | -6/Factory | Garrison activated, responded to threat 18303 | -6/Factory | Lost 4 allies 18663 | -6/Factory | Discovered new exit (range 15) 19402 | -6/Factory | Allied Derelicts emerged from ambush trap array 19463 | -6/Factory | Cargo convoy interrupted 19511 | -6/Factory | Lost 5 allies 19526 | -6/Factory | Destroyed 8 combat bots 19575 | -6/Factory | Found Prototype Protection 19575 | -6/Factory | Identified Centrium Heavy Armor Plating 19868 | -6/Factory | Garrison activated, responded to threat 19912 | -6/Factory | Identified exit to Garrison 19912 | -6/Factory | Entered Garrison 19949 | -6/Garrison | Expanded RIF knowledge: Alert ID Control 20240 | -6/Garrison | Triggered checkpoint 20284 | -6/Garrison | Triggered checkpoint 20331 | -6/Garrison | Garrison Relay disabled 20394 | -6/Garrison | Spotted B-75 Beast 20438 | -6/Garrison | Triggered checkpoint 20478 | -6/Garrison | Destroyed B-75 Beast 20495 | -6/Garrison | Triggered checkpoint 20524 | -6/Garrison | Lost 4 allies 20694 | -6/Garrison | Discovered new exit (range 7) 20740 | -6/Garrison | Triggered checkpoint 20778 | -6/Garrison | Rewired Executioner 20789 | -6/Garrison | Rewired Striker 20813 | -6/Garrison | Garrison Relay disabled 20963 | -6/Garrison | Triggered checkpoint 21000 | -6/Garrison | Spotted B-75 Beast 21003 | -6/Garrison | Spotted B-86 Titan 21012 | -6/Garrison | Rewired B-75 Beast 21014 | -6/Garrison | Rewired B-75 Beast 21014 | -6/Garrison | Allies destroyed B-86 Titan 21017 | -6/Garrison | Allies destroyed B-75 Beast 21139 | -6/Garrison | Found Quantum Capacitor 21166 | -6/Garrison | Found embedded Infiltrators 21215 | -6/Garrison | Discovered new exit (range 8) 21326 | -6/Garrison | Triggered checkpoint 21384 | -6/Garrison | Garrison Relay disabled 21404 | -6/Garrison | Triggered checkpoint 21415 | -6/Garrison | Garrison Relay disabled 21482 | -6/Garrison | Discovered new exit (range 12) 21774 | -6/Garrison | Entered Factory 21774 | -5/Factory | Accompanied by 11 allies 21774 | -5/Factory | Evolved 2 slots: Utility x2 22093 | -5/Factory | Fabricated M-13 Machinist (x1) 22455 | -5/Factory | Discovered new exit (range 14) 22709 | -5/Factory | Discovered new exit (range 6) 22830 | -5/Factory | Cargo convoy interrupted 22833 | -5/Factory | P-70 Sage assimilated allied Guardian 5e 22888 | -5/Factory | Found Prototype Device 22888 | -5/Factory | Identified Adv. EM Disruption Field 22891 | -5/Factory | Lost 7 allies 23139 | -5/Factory | Build established: Bothacker-Mutant 23274 | -5/Factory | First assault squad dispatched 23274 | -5/Factory | Sucked down chute 23274 | -5/Factory | Entered Waste 23289 | -5/Waste | EMP discharged 23298 | -5/Waste | Spotted C-40 Crusher 23308 | -5/Waste | Spotted C-40 Crusher 23317 | -5/Waste | Spotted C-40 Crusher 23364 | -5/Waste | 2 allies followed down the chute 23374 | -5/Waste | Spotted C-40 Crusher 23389 | -5/Waste | EMP discharged 23442 | -5/Waste | Discovered new exit (range 10) 23468 | -5/Waste | Destroyed C-40 Crusher 23489 | -5/Waste | EMP discharged 23528 | -5/Waste | Spotted C-40 Crusher 23548 | -5/Waste | Destroyed C-40 Crusher 23589 | -5/Waste | EMP discharged 23589 | -5/Waste | System corruption reached 10% 23634 | -5/Waste | Found Damper Plating 23687 | -5/Waste | Entered Factory 23687 | -5/Factory | Accompanied by 1 ally 23847 | -5/Factory | Discovered new exit (range 135) 24729 | -5/Factory | Cargo convoy interrupted 24757 | -5/Factory | Spotted B-75 Beast 25599 | -5/Factory | Identified exit to Garrison 25599 | -5/Factory | Entered Garrison 25777 | -5/Garrison | Triggered checkpoint 25829 | -5/Garrison | Triggered checkpoint 25879 | -5/Garrison | Triggered checkpoint 25890 | -5/Garrison | Spotted B-75 Beast 25892 | -5/Garrison | Assimilated B-75 Beast with FLK Orb 25980 | -5/Garrison | Garrison Relay disabled 26108 | -5/Garrison | Build established: Botlord-Mutant 26147 | -5/Garrison | Triggered checkpoint 26193 | -5/Garrison | Triggered checkpoint 26194 | -5/Garrison | Discovered new exit (range 6) 26238 | -5/Garrison | Lost 4 allies 26248 | -5/Garrison | Garrison Relay disabled 26331 | -5/Garrison | Triggered checkpoint 26369 | -5/Garrison | Triggered checkpoint 26437 | -5/Garrison | Triggered checkpoint 26465 | -5/Garrison | Garrison Relay disabled 26533 | -5/Garrison | Lost 3 allies 26561 | -5/Garrison | Lost 3 parts (3u) 26582 | -5/Garrison | Expanded RIF knowledge: Zone Cloak 26631 | -5/Garrison | Triggered checkpoint 26655 | -5/Garrison | Discovered new exit (range 12) 26871 | -5/Garrison | Triggered checkpoint 26877 | -5/Garrison | Lost 3 parts (1n2u) 26905 | -5/Garrison | Expanded RIF knowledge: Crosswire 26934 | -5/Garrison | Garrison Relay disabled 26961 | -5/Garrison | Discovered new exit (range 10) 26971 | -5/Garrison | Discovered new exit (range 46) 26971 | -5/Garrison | Discovered new exit (range 8) 26971 | -5/Garrison | Discovered new exit (range 54) 27084 | -5/Garrison | Garrison Relay disabled 27084 | -5/Garrison | Garrison Relay disabled 27090 | -5/Garrison | Garrison Relay disabled 27137 | -5/Garrison | Garrison Relay disabled 27212 | -5/Garrison | Entered Factory 27212 | -5/Factory | Accompanied by 4 allies 28070 | -5/Factory | Discovered new exit (range 16) 28839 | -5/Factory | Lost 4 allies 29128 | -5/Factory | P-70 Sage assimilated allied Sentinel 6e 29201 | -5/Factory | Discovered new exit (range 6) 29248 | -5/Factory | P-70 Sage assimilated allied Sentinel 6h 29254 | -5/Factory | P-80 Master assimilated allied Sentinel 6g 30088 | -5/Factory | Identified exit to Upper Caves 30088 | -5/Factory | Identified exit to Extension 30206 | -5/Factory | Spotted B-75 Beast 30217 | -5/Factory | Assimilated B-75 Beast with FLK Orb 31351 | -5/Factory | Repaired Centrium Heavy Armor Plating? 31927 | -5/Factory | Repaired Quantum Capacitor 32012 | -5/Factory | First assault squad dispatched 32021 | -5/Factory | Entered Extension 32021 | -5/Extension | Accompanied by 3 allies 32022 | -5/Extension | Identified exit to Cetus 33236 | -5/Extension | Spotted B-75 Beast 33266 | -5/Extension | Destroyed B-75 Beast 33274 | -5/Extension | Spotted B-75 Beast 33291 | -5/Extension | Destroyed B-75 Beast 33319 | -5/Extension | Lost 6 allies 34298 | -5/Extension | Rescued A7 34435 | -5/Extension | Discovered new exit (range 10) 34471 | -5/Extension | Entered Cetus 34471 | -5/Cetus | Accompanied by 8 allies (A7) 34476 | -5/Cetus | Acquired a Cetus Manufacturing Module code from A7 34506 | -5/Cetus | Spotted Cetus Guard 34506 | -5/Cetus | Spotted Cetus Guard 34510 | -5/Cetus | Spotted Cetus Guard 34515 | -5/Cetus | Allies destroyed Cetus Guard 34515 | -5/Cetus | Spotted Cetus Guard 34526 | -5/Cetus | Allies destroyed Cetus Guard 34535 | -5/Cetus | Destroyed Cetus Guard 34536 | -5/Cetus | Allies destroyed Cetus Guard 34564 | -5/Cetus | Lost 3 allies 34681 | -5/Cetus | Started Cetus Manufacturing Module 34706 | -5/Cetus | Manufactured an Enhanced Grunt 34731 | -5/Cetus | Manufactured an Enhanced Grunt 34756 | -5/Cetus | Manufactured an Enhanced Grunt 34781 | -5/Cetus | Manufactured an Enhanced Grunt 34806 | -5/Cetus | Manufactured an Enhanced Grunt 34827 | -5/Cetus | Discovered new exit (range 16) 34867 | -5/Cetus | Spotted Cetus Guard 34867 | -5/Cetus | Spotted Cetus Guard 34869 | -5/Cetus | Spotted Cetus Guard 34870 | -5/Cetus | Spotted Cetus Guard 34873 | -5/Cetus | Allies destroyed Cetus Guard 34886 | -5/Cetus | Allies destroyed Cetus Guard 34887 | -5/Cetus | Allies destroyed Cetus Guard 34893 | -5/Cetus | Allies destroyed Cetus Guard 34898 | -5/Cetus | Discovered new exit (range 16) 35221 | -5/Cetus | Security sweep announced 35285 | -5/Cetus | Entered Archives 35285 | -5/Archives | Accompanied by 6 allies (A7) 35383 | -5/Archives | Discovered new exit (range 15) 35540 | -5/Archives | Discovered new exit (range 13) 35633 | -5/Archives | Build established: Bothacker-Mutant 36275 | -5/Archives | Entered Hub_04(d) 36275 | -5/Hub_04(d) | Accompanied by 5 allies 36612 | -5/Hub_04(d) | Spotted B-75 Beast 36616 | -5/Hub_04(d) | Assimilated B-75 Beast with FLK Orb 36619 | -5/Hub_04(d) | Discovered new exit (range 15) 36825 | -5/Hub_04(d) | Build established: Commander-Mutant 36954 | -5/Hub_04(d) | Entered Factory 36954 | -4/Factory | Accompanied by 6 allies 36954 | -4/Factory | Evolved 2 slots: Power x1, Utility x1 37053 | -4/Factory | Fabricated M-13 Machinist (x1) 37123 | -4/Factory | Discovered new exit (range 4) 37354 | -4/Factory | Garrison activated, responded to threat 37454 | -4/Factory | First assault squad dispatched 37472 | -4/Factory | Garrison activated, responded to threat 37559 | -4/Factory | Identified exit to Garrison 37583 | -4/Factory | Entered Garrison 37583 | -4/Garrison | Accompanied by 6 allies 37663 | -4/Garrison | Triggered checkpoint 37710 | -4/Garrison | Garrison Relay disabled 37738 | -4/Garrison | Lost 4 allies 37792 | -4/Garrison | Triggered checkpoint 37826 | -4/Garrison | Triggered checkpoint 37871 | -4/Garrison | Lost 6 allies 37912 | -4/Garrison | Triggered checkpoint 37959 | -4/Garrison | Lost 3 allies 38083 | -4/Garrison | Triggered checkpoint 38097 | -4/Garrison | Build established: Scavenger-Mutant 38137 | -4/Garrison | Garrison Relay disabled 38180 | -4/Garrison | Expanded RIF knowledge: Threat Obfuscation 38269 | -4/Garrison | Discovered new exit (range 10) 38444 | -4/Garrison | Build established: Botlord-Mutant 38454 | -4/Garrison | Discovered new exit (range 15) 38519 | -4/Garrison | Triggered checkpoint 38578 | -4/Garrison | Spotted Executioner 38614 | -4/Garrison | Garrison Relay disabled 38777 | -4/Garrison | Garrison Relay disabled 38861 | -4/Garrison | Discovered new exit (range 13) 38953 | -4/Garrison | Spotted B-86 Titan 38959 | -4/Garrison | Found Quantum Capacitor 38990 | -4/Garrison | Destroyed B-86 Titan 39052 | -4/Garrison | Found Unknown Hackware 39243 | -4/Garrison | Entered Factory 39363 | -4/Factory | Fabricated M-13 Machinist? 39439 | -4/Factory | Spotted B-86 Titan 39867 | -4/Factory | Found Quantum Capacitor 40472 | -4/Factory | Identified Relay Coupler [Proto] 40605 | -4/Factory | Discovered new exit (range 14) 40718 | -4/Factory | System corruption reached 10% 41560 | -4/Factory | Identified exit to Garrison 41570 | -4/Factory | Entered Garrison 41570 | -4/Garrison | Accompanied by 2 allies 41624 | -4/Garrison | Triggered checkpoint 41653 | -4/Garrison | Garrison Relay disabled 41903 | -4/Garrison | Spotted B-86 Titan 41934 | -4/Garrison | Triggered checkpoint 41945 | -4/Garrison | Triggered checkpoint 41956 | -4/Garrison | Destroyed B-86 Titan 41983 | -4/Garrison | Lost 4 parts (2u2w) 41984 | -4/Garrison | Triggered checkpoint 42003 | -4/Garrison | Triggered checkpoint 42025 | -4/Garrison | Lost 7 allies 42032 | -4/Garrison | Destroyed 9 combat bots 42100 | -4/Garrison | Triggered checkpoint 42257 | -4/Garrison | Garrison Relay disabled 42432 | -4/Garrison | Triggered checkpoint 42488 | -4/Garrison | Discovered new exit (range 12) 42537 | -4/Garrison | Found Unknown Launcher 42537 | -4/Garrison | Identified Gamma Bomb Array 43084 | -4/Garrison | Triggered checkpoint 43144 | -4/Garrison | Triggered checkpoint 43179 | -4/Garrison | Expanded RIF knowledge: Robot Detection 43208 | -4/Garrison | Garrison Relay disabled 43348 | -4/Garrison | Triggered checkpoint 43372 | -4/Garrison | Discovered new exit (range 5) 43616 | -4/Garrison | Triggered checkpoint 43659 | -4/Garrison | Garrison Relay disabled 43699 | -4/Garrison | Spotted Striker 43752 | -4/Garrison | Discovered new exit (range 8) 43870 | -4/Garrison | Entered Factory 43870 | -4/Factory | Accompanied by 1 ally 44086 | -4/Factory | Spotted B-86 Titan 44296 | -4/Factory | Fabricated M-13 Machinist (x1) 44554 | -4/Factory | Identified exit to Garrison 44555 | -4/Factory | Entered Garrison 44555 | -4/Garrison | Accompanied by 1 ally 44650 | -4/Garrison | Garrison Relay disabled 44661 | -4/Garrison | Triggered checkpoint 44801 | -4/Garrison | Spotted B-86 Titan 44808 | -4/Garrison | Triggered checkpoint 44809 | -4/Garrison | Destroyed B-86 Titan 44827 | -4/Garrison | Triggered checkpoint 44832 | -4/Garrison | P-70 Sage assimilated allied Veteran 7c 44835 | -4/Garrison | P-70 Sage assimilated allied G-67 Veteran 44867 | -4/Garrison | Triggered checkpoint 44867 | -4/Garrison | Triggered checkpoint 44901 | -4/Garrison | Lost 7 allies 45071 | -4/Garrison | Discovered new exit (range 8) 45129 | -4/Garrison | Triggered checkpoint 45141 | -4/Garrison | Garrison Relay disabled 45149 | -4/Garrison | System corruption reached 30% 45419 | -4/Garrison | Discovered new exit (range 4) 45459 | -4/Garrison | Triggered checkpoint 45502 | -4/Garrison | Garrison Relay disabled 45558 | -4/Garrison | Expanded RIF knowledge: Watcher Feeds 45607 | -4/Garrison | Spotted B-86 Titan 45651 | -4/Garrison | Triggered checkpoint 45694 | -4/Garrison | Garrison Relay disabled 45739 | -4/Garrison | Garrison Relay disabled 45790 | -4/Garrison | Triggered checkpoint 45810 | -4/Garrison | Discovered new exit (range 2) 45982 | -4/Garrison | Entered Research 45982 | -3/Research | Accompanied by 5 allies 45982 | -3/Research | Evolved 2 slots: Propulsion x2 46182 | -3/Research | Revision forces began assault on 0b10 46256 | -3/Research | Met up with Revision 17++ 46382 | -3/Research | Lost 4 allies 46491 | -3/Research | Lost 4 allies 46667 | -3/Research | Identified exit to Garrison 46667 | -3/Research | Entered Garrison 46707 | -3/Garrison | Triggered checkpoint 46718 | -3/Garrison | Found Corrupted Quantum Capacitor 46732 | -3/Garrison | System corruption reached 10% 46761 | -3/Garrison | Garrison Relay disabled 46953 | -3/Garrison | Triggered checkpoint 46993 | -3/Garrison | Triggered checkpoint 47016 | -3/Garrison | Spotted B-86 Titan 47065 | -3/Garrison | Destroyed B-86 Titan 47099 | -3/Garrison | Triggered checkpoint 47147 | -3/Garrison | Triggered checkpoint 47232 | -3/Garrison | Discovered new exit (range 12) 47245 | -3/Garrison | Expanded RIF knowledge: Autooverride 47391 | -3/Garrison | Triggered checkpoint 47412 | -3/Garrison | Garrison Relay disabled 47563 | -3/Garrison | Triggered checkpoint 47606 | -3/Garrison | Garrison Relay disabled 47633 | -3/Garrison | Discovered new exit (range 8) 47787 | -3/Garrison | Garrison Relay disabled 47821 | -3/Garrison | Triggered checkpoint 47860 | -3/Garrison | Discovered new exit (range 2) 47885 | -3/Garrison | Discovered new exit (range 13) 47885 | -3/Garrison | Discovered new exit (range 68) 47885 | -3/Garrison | Discovered new exit (range 80) 47910 | -3/Garrison | Entered Research 47910 | -3/Research | Accompanied by 4 allies 47976 | -3/Research | Spotted B-86 Titan 47979 | -3/Research | Found Quantum Capacitor 47990 | -3/Research | Destroyed B-86 Titan 48154 | -3/Research | Garrison activated, responded to threat 48243 | -3/Research | Garrison activated, responded to threat 48293 | -3/Research | Found Hellfire Missile Launcher 48405 | -3/Research | Spotted B-86 Titan 48419 | -3/Research | Destroyed B-86 Titan 48467 | -3/Research | Identified exit to Quarantine 48492 | -3/Research | Garrison activated, responded to threat 48587 | -3/Research | Garrison activated, responded to threat 48609 | -3/Research | P-80 Master assimilated allied Smith 8a 48610 | -3/Research | Research terminal network offline 48829 | -3/Research | Spotted B-90 Cyclops 48894 | -3/Research | Assimilated B-90 Cyclops with FLK Orb 48911 | -3/Research | Spotted Striker 48914 | -3/Research | Spotted Striker 48924 | -3/Research | Entered Quarantine 49055 | -3/Quarantine | Found Alien Artifact 49341 | -3/Quarantine | Identified Subatomic Replicator 50235 | -3/Quarantine | Discovered new exit (range 3) 50330 | -3/Quarantine | Found Phase Redirector 50887 | -3/Quarantine | Found Alien Impact Weapon 50904 | -3/Quarantine | Garrison activated, responded to threat 51016 | -3/Quarantine | Found Prototype Device 51379 | -3/Quarantine | Lost 3 allies 51594 | -3/Quarantine | Identified Core Stripper 51596 | -3/Quarantine | Spotted Fortress 51606 | -3/Quarantine | Destroyed Fortress 51629 | -3/Quarantine | Found Prototype Device 51629 | -3/Quarantine | Identified Thermal Barrier 51638 | -3/Quarantine | Found Prototype Reactor 51638 | -3/Quarantine | Identified Vortex Chain Reactor 51642 | -3/Quarantine | Identified Exp. Thermal Defense Suite 51645 | -3/Quarantine | Found Prototype Device 51645 | -3/Quarantine | Identified Exp. EM Disruption Field 51646 | -3/Quarantine | Lost 3 allies 51652 | -3/Quarantine | Found Prototype Device 51652 | -3/Quarantine | Identified Exp. Force Field 51728 | -3/Quarantine | Found Centrium Heavy Armor Plating 51829 | -3/Quarantine | Discovered new exit (range 6) 51837 | -3/Quarantine | Entered Section 7 51855 | -3/Section 7 | Spotted S7 Guard 51863 | -3/Section 7 | Garrison activated, responded to threat 51875 | -3/Section 7 | Destroyed S7 Guard 51891 | -3/Section 7 | Found Alien Artifact 51969 | -3/Section 7 | Found Alien Artifact 52558 | -3/Section 7 | Spotted Executioner 52561 | -3/Section 7 | Spotted Executioner 52567 | -3/Section 7 | Destroyed Executioner 52578 | -3/Section 7 | Destroyed Executioner 52626 | -3/Section 7 | Installed Integrated Reactor, increased core energy generation (+10) 52629 | -3/Section 7 | Installed Core Membrane, gained immunity to corruption 52721 | -3/Section 7 | Found Hpw. Transdimensional Reconstructor 52725 | -3/Section 7 | Found Alien Artifact 52812 | -3/Section 7 | Spotted B-99 Colossus 52833 | -3/Section 7 | Assimilated B-99 Colossus with FLK Orb 52943 | -3/Section 7 | Found LRC Insulator 52943 | -3/Section 7 | Installed LRC Insulator, gained EM resistance (25) 52954 | -3/Section 7 | Found LRC Matter Compressor 52954 | -3/Section 7 | Installed LRC Matter Compressor, increased matter storage capacity (+125) 52957 | -3/Section 7 | Found LRC Matter Compressor 52957 | -3/Section 7 | Installed LRC Matter Compressor, increased matter storage capacity (+125) 53020 | -3/Section 7 | Found Integrity Redistributor 53020 | -3/Section 7 | Used Integrity Redistributor, redistributed integrity from core (-299) 53021 | -3/Section 7 | Core integrity fell below 50% 53024 | -3/Section 7 | Found Integrity Redistributor 53027 | -3/Section 7 | Found Integrity Redistributor 53099 | -3/Section 7 | Found Integrity Redistributor 53362 | -3/Section 7 | Scanned by Researcher 53363 | -3/Section 7 | Intercept squad dispatched 53367 | -3/Section 7 | Spotted Tracker 53368 | -3/Section 7 | Spotted Tracker 53378 | -3/Section 7 | Spotted Combat Programmer 53379 | -3/Section 7 | Spotted Combat Programmer 53384 | -3/Section 7 | Destroyed Tracker 53389 | -3/Section 7 | Destroyed Tracker 53422 | -3/Section 7 | Destroyed Combat Programmer 53430 | -3/Section 7 | Destroyed Combat Programmer 53617 | -3/Section 7 | Identified exit to Garrison 53617 | -3/Section 7 | Entered Garrison 53617 | -3/Garrison | Accompanied by 1 ally 53640 | -3/Garrison | Garrison Relay disabled 53682 | -3/Garrison | Triggered checkpoint 53741 | -3/Garrison | Triggered checkpoint 53764 | -3/Garrison | Garrison Relay disabled 53866 | -3/Garrison | Learned Research security intel 53972 | -3/Garrison | Expanded RIF knowledge: Autoassimilate 54008 | -3/Garrison | Triggered checkpoint 54020 | -3/Garrison | Spotted B-86 Titan 54021 | -3/Garrison | Triggered checkpoint 54030 | -3/Garrison | Allies destroyed B-86 Titan 54042 | -3/Garrison | Found Quantum Capacitor 54054 | -3/Garrison | Triggered checkpoint 54070 | -3/Garrison | Triggered checkpoint 54130 | -3/Garrison | Lost 5 allies 54173 | -3/Garrison | Discovered new exit (range 10) 54236 | -3/Garrison | Garrison Relay disabled 54257 | -3/Garrison | Triggered checkpoint 54306 | -3/Garrison | Lost 3 allies 54476 | -3/Garrison | Lost 3 allies 54512 | -3/Garrison | Triggered checkpoint 54629 | -3/Garrison | Triggered checkpoint 54630 | -3/Garrison | Garrison Relay disabled 54763 | -3/Garrison | Triggered checkpoint 54798 | -3/Garrison | Garrison Relay disabled 54925 | -3/Garrison | Discovered new exit (range 10) 54963 | -3/Garrison | Triggered checkpoint 54984 | -3/Garrison | Garrison Relay disabled 54998 | -3/Garrison | Identified Transdimensional Reconstructor 54998 | -3/Garrison | Warped through subspace 55249 | -3/Garrison | Found Unknown Hackware 55258 | -3/Garrison | Found Unknown Hackware 55263 | -3/Garrison | Found Unknown Hackware 55267 | -3/Garrison | Found Unknown Hackware 55267 | -3/Garrison | Identified Relay Coupler [Proto] (x4) 55313 | -3/Garrison | Entered Research 55313 | -2/Research | Accompanied by 6 allies 55313 | -2/Research | Evolved 2 slots: Utility x2 55436 | -2/Research | Spotted B-90 Cyclops 55450 | -2/Research | Allies destroyed B-90 Cyclops 55906 | -2/Research | Intercept squad dispatched 55927 | -2/Research | Spotted Tracker 55927 | -2/Research | Spotted Tracker 55929 | -2/Research | Allies destroyed Tracker 55939 | -2/Research | Allies destroyed Tracker 55941 | -2/Research | Found Exp. Targeting Computer 55951 | -2/Research | Spotted Combat Programmer 55971 | -2/Research | Combat Programmer assimilated allied Enforcer 9c 55978 | -2/Research | Allies destroyed Combat Programmer 56003 | -2/Research | Spotted Combat Programmer 56013 | -2/Research | Allies destroyed Combat Programmer 56141 | -2/Research | Identified exit to Garrison 56149 | -2/Research | Entered Garrison 56149 | -2/Garrison | Accompanied by 5 allies 56213 | -2/Garrison | Triggered checkpoint 56236 | -2/Garrison | Garrison Relay disabled 56330 | -2/Garrison | Spotted Executioner 56340 | -2/Garrison | Destroyed Executioner 56397 | -2/Garrison | Rewired Striker 56421 | -2/Garrison | Rewired Striker 56431 | -2/Garrison | Found Corrupted Prototype Processor 56463 | -2/Garrison | Triggered checkpoint 56467 | -2/Garrison | Triggered checkpoint 56468 | -2/Garrison | Triggered checkpoint 56468 | -2/Garrison | Spotted B-90 Cyclops 56479 | -2/Garrison | Triggered checkpoint 56522 | -2/Garrison | Lost 6 allies 56565 | -2/Garrison | Triggered checkpoint 56576 | -2/Garrison | Expanded RIF knowledge: Threat Obfuscation 56617 | -2/Garrison | Discovered new exit (range 13) 56703 | -2/Garrison | Triggered checkpoint 56721 | -2/Garrison | Garrison Relay disabled 56891 | -2/Garrison | Triggered checkpoint 56914 | -2/Garrison | Found embedded Infiltrators 56920 | -2/Garrison | Garrison Relay disabled 57012 | -2/Garrison | Discovered new exit (range 13) 57135 | -2/Garrison | Triggered checkpoint 57166 | -2/Garrison | Learned Testing security intel 57180 | -2/Garrison | Garrison Relay disabled 57203 | -2/Garrison | Triggered checkpoint 57321 | -2/Garrison | Discovered new exit (range 22) 57336 | -2/Garrison | Spotted B-90 Cyclops 57388 | -2/Garrison | Entered Testing 57388 | -2/Testing | Accompanied by 18 allies 57391 | -2/Testing | Spotted Alpha 7 57404 | -2/Testing | Identified Exp. Core Analyzer 57414 | -2/Testing | Destroyed Alpha 7 57417 | -2/Testing | Rewired GD-4FG(K) 57421 | -2/Testing | Rewired Q7-D3M(K) 57422 | -2/Testing | Rewired XS-7SA(K) 57585 | -2/Testing | Spotted Striker 57684 | -2/Testing | Garrison activated, responded to threat 57774 | -2/Testing | Found Prototype Energy Cannon 57774 | -2/Testing | Identified Cld. Nova Cannon 58474 | -2/Testing | Intercept squad dispatched 58484 | -2/Testing | Spotted Tracker 58484 | -2/Testing | Spotted Tracker 58486 | -2/Testing | Spotted Combat Programmer 58487 | -2/Testing | Allies destroyed Tracker 58488 | -2/Testing | Spotted Combat Programmer 58491 | -2/Testing | Allies destroyed Tracker 58491 | -2/Testing | Garrison activated, responded to threat 58495 | -2/Testing | Allies destroyed Combat Programmer 58496 | -2/Testing | Combat Programmer assimilated allied Warden 9c 58499 | -2/Testing | Allies destroyed Combat Programmer 58567 | -2/Testing | Lost 7 allies 58706 | -2/Testing | Lost 9 allies 58995 | -2/Testing | Spotted PX-MDABWZRNWI 59012 | -2/Testing | Lost 3 allies 59017 | -2/Testing | Allies destroyed PX-MDABWZRNWI 59109 | -2/Testing | Found Prototype Energy Cannon 59111 | -2/Testing | Identified Imp. Potential Cannon 59217 | -2/Testing | Discovered new exit (range 10) 59305 | -2/Testing | Found Prototype Protection 59305 | -2/Testing | Identified Hvy. Regenerative Plating 59307 | -2/Testing | Used Integrity Redistributor, redistributed integrity from core (-274) 59314 | -2/Testing | Found Prototype Protection 59314 | -2/Testing | Identified SHELL Armor 59434 | -2/Testing | P-80 Master assimilated allied Enforcer 9s 59440 | -2/Testing | P-80 Master assimilated allied Enforcer 9g 59468 | -2/Testing | Lost 4 allies 59639 | -2/Testing | Found Prototype Launcher 59700 | -2/Testing | Identified exit to Garrison 59729 | -2/Testing | Entered Garrison 59729 | -2/Garrison | Accompanied by 5 allies 59835 | -2/Garrison | Identified Ragnarok Missile Launcher 59860 | -2/Garrison | Found embedded Infiltrators 59873 | -2/Garrison | Triggered checkpoint 59890 | -2/Garrison | Garrison Relay disabled 60083 | -2/Garrison | Spotted B-75 Beast 60093 | -2/Garrison | Destroyed B-75 Beast 60115 | -2/Garrison | Spotted B-75 Beast 60123 | -2/Garrison | Allies destroyed B-75 Beast 60146 | -2/Garrison | Rewired B-75 Beast 60172 | -2/Garrison | Found Quantum Capacitor 60231 | -2/Garrison | Triggered checkpoint 60233 | -2/Garrison | Triggered checkpoint 60234 | -2/Garrison | Spotted B-90 Cyclops 60234 | -2/Garrison | Triggered checkpoint 60236 | -2/Garrison | Triggered checkpoint 60249 | -2/Garrison | Allies destroyed B-90 Cyclops 60303 | -2/Garrison | Lost 7 allies 60357 | -2/Garrison | Triggered checkpoint 60377 | -2/Garrison | Garrison Relay disabled 60446 | -2/Garrison | Lost 5 allies 60467 | -2/Garrison | Triggered checkpoint 60474 | -2/Garrison | Discovered new exit (range 12) 60698 | -2/Garrison | Discovered new exit (range 10) 60843 | -2/Garrison | Garrison Relay disabled 60934 | -2/Garrison | Triggered checkpoint 61079 | -2/Garrison | Expanded RIF knowledge: Hotswap 61095 | -2/Garrison | Discovered new exit (range 15) 61109 | -2/Garrison | Triggered checkpoint 61136 | -2/Garrison | Garrison Relay disabled 61221 | -2/Garrison | Entered Access 61221 | -1/Access | Accompanied by 18 allies 61221 | -1/Access | Evolved 2 slots: Power x1, Utility x1 61657 | -1/Access | Lost 18 allies 61723 | -1/Access | Spotted B-99 Colossus 61766 | -1/Access | Destroyed B-99 Colossus 61964 | -1/Access | Intercept squad dispatched 62009 | -1/Access | Spotted Tracker 62011 | -1/Access | Spotted Tracker 62017 | -1/Access | Destroyed Tracker 62022 | -1/Access | Destroyed Tracker 62091 | -1/Access | Spotted Combat Programmer 62094 | -1/Access | Destroyed Combat Programmer 62110 | -1/Access | Spotted Combat Programmer 62123 | -1/Access | Destroyed Combat Programmer 62473 | -1/Access | Identified exit to Garrison 62473 | -1/Access | Entered Garrison 62509 | -1/Garrison | Garrison Relay disabled 62513 | -1/Garrison | Triggered checkpoint 62781 | -1/Garrison | Spotted B-99 Colossus 62832 | -1/Garrison | Destroyed B-99 Colossus 62903 | -1/Garrison | Lost 3 allies 63009 | -1/Garrison | Triggered checkpoint 63009 | -1/Garrison | Spotted B-99 Colossus 63042 | -1/Garrison | Destroyed B-99 Colossus 63065 | -1/Garrison | Triggered checkpoint 63090 | -1/Garrison | Triggered checkpoint 63108 | -1/Garrison | Triggered checkpoint 63205 | -1/Garrison | Triggered checkpoint 63228 | -1/Garrison | Garrison Relay disabled 63281 | -1/Garrison | Discovered new exit (range 10) 63409 | -1/Garrison | Discovered new exit (range 10) 63461 | -1/Garrison | Triggered checkpoint 63635 | -1/Garrison | Garrison Relay disabled 63826 | -1/Garrison | Expanded RIF knowledge: Patrol Navigation 63845 | -1/Garrison | Triggered checkpoint 63857 | -1/Garrison | Garrison Relay disabled 63914 | -1/Garrison | Discovered new exit (range 13) 63971 | -1/Garrison | Entered Access 63971 | -1/Access | Accompanied by 9 allies 63975 | -1/Access | Used Integrity Redistributor, redistributed integrity from core (-317) 64263 | -1/Access | Lost 7 allies 64974 | -1/Access | Found Exp. Shock Absorption System 65051 | -1/Access | Discovered new exit (range 9) 65183 | -1/Access | Entered Command 65183 | -1/Command | Accompanied by 1 ally 66413 | -1/Command | Spotted B-99 Colossus 66626 | -1/Command | Spotted M Guard 66626 | -1/Command | Spotted M Guard 66627 | -1/Command | Spotted Combat Programmer 66627 | -1/Command | Spotted Combat Programmer 66629 | -1/Command | Assimilated M Guard with formatsys_high 66630 | -1/Command | Assimilated M Guard with formatsys_high 66647 | -1/Command | Destroyed Combat Programmer 66658 | -1/Command | Destroyed Combat Programmer 66731 | -1/Command | Hijacked Colossus 10a control node with streamctrl_high 66771 | -1/Command | Destroyed Colossus 10a 68282 | -1/Command | Met MAIN.C 68299 | -1/Command | 0b10 Conduit disabled 68311 | -1/Command | Allies destroyed MAIN.C Shell 68313 | -1/Command | MAIN.C activated Command garrisons 68359 | -1/Command | P-80 Master assimilated allied Artificer 10a 68364 | -1/Command | Lost 3 allies 68365 | -1/Command | All MAIN.C guards destroyed 68383 | -1/Command | Destroyed MAIN.C 68433 | -1/Command | Discovered new exit (range 38) 68433 | -1/Command | Discovered new exit (range 104) 68433 | -1/Command | Extracted map data and part IDs from MAIN.C's data core 68453 | -1/Command | Build established: Generator-Mutant 68470 | -1/Command | Spotted B-99 Colossus 68482 | -1/Command | Destroyed B-99 Colossus 68534 | -1/Command | Destroyed 15 combat bots 68536 | -1/Command | Spotted Striker 68545 | -1/Command | Destroyed Striker 68582 | -1/Command | Destroyed 7 combat bots 69251 | -1/Command | Used Subatomic Replicator to replicate Integrity Redistributor 70752 | -1/Command | Found Corrupted Multirail 70940 | -1/Command | Found Multirail 70982 | -1/Command | Build established: Scavenger-Mutant 71488 | -1/Command | Found Adv. Force Booster 71811 | -1/Command | Found Exp. System Purifier 71816 | -1/Command | Found Hvy. Regenerative Plating 71822 | -1/Command | Found Hvy. Regenerative Plating 72521 | -1/Command | Found Hvy. Insulated Plating 74981 | -1/Command | Core integrity fell below 50% 75140 | -1/Command | Used Integrity Redistributor, redistributed integrity to core (+822) 75395 | -1/Command | Found Exp. Targeting Computer 75502 | -1/Command | Found Exp. Core Analyzer 75561 | -1/Command | Build established: Generator-Mutant 76016 | -1/Command | Found Zero-point Reactor 76020 | -1/Command | Found Vortex Chain Reactor 76026 | -1/Command | Found Exp. Transmission Jammer 77150 | -1/Command | Found Exp. Targeting Computer 78272 | -1/Command | Found Exp. Targeting Computer 80590 | -1/Command | Warped through subspace to slip node 80590 | -1/Command | Discovered new exit (range 4) 80602 | -1/Command | Entered Access_0 80604 | -1/Access_0 | Met Architect 80605 | -1/Access_0 | Architect warped through subspace 80611 | -1/Access_0 | Destroyed A8 80654 | -1/Access_0 | Architect warped through subspace 80691 | -1/Access_0 | Architect warped through subspace 80726 | -1/Access_0 | Architect warped through subspace 80794 | -1/Access_0 | Subspace Access Node disabled 80839 | -1/Access_0 | Architect warped through subspace 80862 | -1/Access_0 | Architect warped through subspace 80920 | -1/Access_0 | Architect warped through subspace 80947 | -1/Access_0 | Architect warped through subspace 80967 | -1/Access_0 | Architect warped through subspace 80975 | -1/Access_0 | Destroyed 7 combat bots 80990 | -1/Access_0 | Architect warped through subspace 81000 | -1/Access_0 | Architect warped through subspace 81028 | -1/Access_0 | Architect warped through subspace 81035 | -1/Access_0 | Architect warped through subspace 81045 | -1/Access_0 | Architect warped through subspace 81068 | -1/Access_0 | Architect warped through subspace 81072 | -1/Access_0 | A6 warped into view 81080 | -1/Access_0 | Destroyed A6 81095 | -1/Access_0 | Architect warped through subspace 81112 | -1/Access_0 | Used Integrity Redistributor, redistributed integrity from core (-403) 81118 | -1/Access_0 | Architect warped through subspace 81162 | -1/Access_0 | Architect warped through subspace 81164 | -1/Access_0 | Subspace Access Node disabled 81175 | -1/Access_0 | Architect warped through subspace 81192 | -1/Access_0 | Architect warped through subspace 81235 | -1/Access_0 | Architect warped through subspace 81258 | -1/Access_0 | Architect warped through subspace 81279 | -1/Access_0 | Architect warped through subspace 81300 | -1/Access_0 | Architect warped through subspace 81318 | -1/Access_0 | Architect warped through subspace 81334 | -1/Access_0 | Architect warped through subspace 81348 | -1/Access_0 | Architect warped through subspace 81360 | -1/Access_0 | Architect warped through subspace 81368 | -1/Access_0 | Found Integrated Reactor 81369 | -1/Access_0 | Installed Integrated Reactor, increased core energy generation (+10) 81384 | -1/Access_0 | Architect warped through subspace 81398 | -1/Access_0 | Architect warped through subspace 81408 | -1/Access_0 | Architect warped through subspace 81426 | -1/Access_0 | Architect warped through subspace 81438 | -1/Access_0 | Architect warped through subspace 81449 | -1/Access_0 | Architect warped through subspace 81454 | -1/Access_0 | Subspace Access Node disabled 81457 | -1/Access_0 | Architect warped through subspace 81463 | -1/Access_0 | A5 warped into view 81463 | -1/Access_0 | Architect warped through subspace 81466 | -1/Access_0 | Destroyed A5 81473 | -1/Access_0 | Architect warped through subspace 81484 | -1/Access_0 | Subspace Access Node disabled 81501 | -1/Access_0 | Destroyed Architect 81502 | -1/Access_0 | Architect triggered a singularity event 81503 | -1/Access_0 | Released all parts (19) 81507 | -1/Access_0 | Found Hpw. Transdimensional Reconstructor 81507 | -1/Access_0 | Warped through subspace to slip node 81507 | -1/Access_0 | Discovered new exit (range 8) 81512 | *** | Escaped singularity! Last Messages --------------- 81503_ Released Exp. Cooling System. 81503_ Released Zero-point Reactor. 81503_ Released Vortex Chain Reactor. 81503_ Released Biometal Heavy Treads. 81503_ Released Exp. Targeting Computer. 81503_ Released Adv. Power Amplifier. 81503_ Released Energy Well. 81504_ A0_COM: 9. 81505_ A0_COM: 8. 81506_ A0_COM: 7. 81506_ Acquired 130 matter. 81507_ A0_COM: 6. 81507_ Acquired Hpw. Transdimensional Reconstructor. 81507_ Warped through subspace, drawn to slip node. 81507_ EXIT=FOUND 81508_ A0_COM: 5. 81509_ A0_COM: 4. 81510_ A0_COM: 3. 81511_ A0_COM: 2. 81512_ A0_COM: 1. Map ----- +----------------------------------------------------+ | | | | | | | | | | | | | | | | | | | | | | | | | | | | | | | | | ?????????????????????????????????????????????????? | | ?????????????????????????????????????????????????? | | ?????????????????????????????????????????????????? | | ?????????????????????????????????????????????????? | | ?????????????????????????????????????????????????? | | ?????????????????????????????????????????????????? | | ????????????????????????###??????????????????????? | | ???????????????????????## ##?????????????????????? | | ???????????????????????# #?????????????????????? | | ???????????????????????# @ #?????????????????????? | | ??????????????????????## #?????????????????????? | | ??????????????????????# #?????????????????????? | | ??????????????????????# ##?????????????????????? | | ??????????????????????## #?????????????????????? | | ??????????????????????# #?????????????????????? | | ??????????????????????# ##?????????????????????? | | ??????????????????????# < #?????????????????????? | | ??????????????????????# ##?????????????????????? | | ??????????????????????## #??????????????????????? | | ???????????????????????####??????????????????????? | | ?????????????????????????????????????????????????? | | ?????????????????????????????????????????????????? | | ?????????????????????????????????????????????????? | | ?????????????????????????????????????????????????? | | ?????????????????????????????????????????????????? | | ?????????????????????????????????????????????????? | | ?????????????????????????????????????????????????? | | ?????????????????????????????????????????????????? | | ?????????????????????????????????????????????????? | | ?????????????????????????????????????????????????? | | ?????????????????????????????????????????????????? | | ?????????????????????????????????????????????????? | | ?????????????????????????????????????????????????? | | ?????????????????????????????????????????????????? | +----------------------------------------------------+ Best States ------------- Heat Dissipation 132 Coolant Potential 120 Energy Generation 178 Energy Capacity 1440 Matter Stores 550 Matter Capacity 800 Sight Range 23 Robot Scan Range 20 Terrain Scan Range 24 Terrain Scan Density 10 Jamming Range 16 Power Amplification 60 Additional Mass Support 12 Armor Coverage 1800 Resistance: KI 30 Resistance: TH 50 Resistance: EX 75 Resistance: EM 100 Core Shielding 20 Utility Shielding 66 Point Defense Rating 240 Weapon Cycling 25 Phase Shifting 15 Evasion (%) 55 Targeting Accuracy 24 Core Analysis 8 Recoil Reduction 6 Kinecelleration 40 Force Boost 40 Offensive Hacking 12 Defensive Hacking 14 Relay Coupler Types 8 Relay Coupler Value 144 Authchip Count 2 Trap Extractor Capacity 8 Item Schematics ----------------- Enh. Autogun | -8/Materials | Scanalyzed Hvy. Phase Cannon | -8/Materials | Scanalyzed Exp. Sensor Array | -7/Factory | Scanalyzed Med. Reactive Plating | -7/Factory | Scanalyzed Coolant Network | -3/Section 7 | Archive Exp. Flexi-carbon Leg | -3/Section 7 | Archive Exp. Signal Interpreter | -3/Section 7 | Archive Cld. Plasma Rifle | -3/Section 7 | Archive Impact Mace | -3/Section 7 | Archive Centrium Heavy Armor Plating | -3/Section 7 | Archive Exp. Thermal Generator | -3/Section 7 | Archive Hvy. Neutron Cannon | -3/Section 7 | Archive Exp. Core Analyzer | -2/Testing | Archive Hdn. Centrium Heavy Treads | -2/Testing | Archive Imp. Energy Mantle | -2/Testing | Archive Exp. Thermal Shield | -2/Testing | Archive Helical Railgun | -2/Testing | Archive Hvy. Hardcell Cannon | -2/Testing | Archive Hdn. Centrium Leg | -2/Testing | Archive Exp. Q-thruster | -2/Testing | Archive Hvy. Wave Gun | -2/Testing | Archive Exp. EM Disruption Field | -2/Testing | Archive Prc. Phase Gun | -2/Testing | Archive Exp. Heat Sink | -2/Testing | Archive Cld. Q-thruster | -2/Testing | Archive Adv. Thermal Defense Suite | -2/Testing | Archive Imp. Quantum Reactor | -2/Testing | Archive Robot Schematics ------------------ M-13 Machinist | -10/Materials | Hacked S-43 Plague | -3/Section 7 | Archive K-01 Serf | -2/Testing | Archive T-07 Excavator | -2/Testing | Archive A-27 Freighter | -2/Testing | Archive Fabricated ------------ Hvy. Phase Cannon | x2 | -7/Factory M-13 Machinist | x1 | -5/Factory | Authchip M-13 Machinist | x1 | -4/Factory M-13 Machinist | x1 | -4/Factory | Authchip M-13 Machinist | x1 | -4/Factory | Authchip Alien Tech Used ----------------- Phase Redirector Core Stripper Integrated Reactor Core Membrane LRC Insulator LRC Matter Compressor Integrity Redistributor Transdimensional Reconstructor Subatomic Replicator High-powered Transdimensional Reconstructor Achievements -------------- Superinsulated Challenges ------------ None Game ------ Seed NodeAutogunInterrupter Manual? 0 Play Time 10:23:45 Cumulative 536.8 hours Start 2024.11.19 @ 07:04:41 End 2024.11.22 @ 15:14:12 Sessions 59 Manual Loads 0 Difficulty Rogue Special Mode None Game No. 306 Rogue 306 Adventurer 0 Explorer 0 Win Type 6 Total 41 Types 27/3/5/1/1/0/2/1/1 Lore% 81 Gallery% 86 Achievement% 85 Wizard Run 0 Options --------- Layout 0 ASCII 0 Keyboard 1 Movement Numpad Keybinds 0 Fullscreen 2 Font 18/SmallcapsGlow Map View 76x50 Zoom Use 0% Tactical HUD 1 Map Filters NONE Filters NONE Steam 1 RUN: 59d3b980-fedb-4bd1-82b0-3f4187f1cdfc